Workbook

Sheet ف.1.أ
G1: كشف رصد الدرجات للصف الأول ثانوي القسم العام | CK1: 12 | AKO1: 20 | AKP1: 18 | AKQ1: 38 | AKR1: 20 | AKS1: 18 | AKT1: 38 | AKU1: 20 | AKV1: 18 | AKW1: 38 | AKX1: 20 | AKY1: 18 | AKZ1: 38 | ALA1: 20 | ALB1: 18 | ALC1: 38 | ALD1: 20 | ALE1: 18 | ALF1: 38 | ALG1: 20 | ALH1: 18 | ALI1: 38 | ALJ1: 20 | ALK1: 18 | ALL1: 38 | ALM1: 20 | ALN1: 18 | ALO1: 38 | ALP1: 20 | ALQ1: 18 | ALR1: 38 | ALS1: 20 | ALT1: 18 | ALU1: 38 | ALV1: 20 | ALW1: 18 | ALX1: 38 | ALY1: 20 | ALZ1: 18 | AMA1: 38 | AMB1: 20 | AMC1: 18 | AMD1: 38
G2: للعام الدراسي : 1440 - 1441 هجرية الموافق : 2019 - 2020 ميلادي
B4: رقــم مسلســـــــل | C4: اسم الطالب بالكامل | D4: الجنـــــــــــــــــــــــــس | E4: الفصـــــــــــــــــــــــــــل | F4: رقــم الجلــــــــــــــوس | G4: الرقـــــم الســــــــــري | H4: التربية الأسلامية | K4: التربية الأسلامية | N4: اللغة العربية | Q4: اللغة العربية | T4: اللغة الأنجليزية | W4: اللغة الأنجليزية | Z4: تقنية المعلومات | AC4: تقنية المعلومات | AF4: الرباضيـات | AI4: الرباضيـات | AL4: الفيزياء | AO4: الفيزياء | AR4: الكيمياء | AU4: الكيمياء | AX4: الأحياء | BA4: الأحياء | BD4: التاريخ | BG4: التاريخ | BJ4: الجغرافيا | BM4: الجغرافيا | BP4: علم الأجتماع | BS4: علم الأجتماع | BV4: مجمـــــوع الفصــــل الأول | BW4: النسبــــــــــــــــــــــــــــــة | BX4: التقــــــــــــــــــــــــــدير | BY4: نتيجة الطالب | BZ4: مـــــــــــــــــواد الرســـــــــــــــــــوب | CK4: الترتيـــــــــــــــــــــــــــــــب
H5: الفصل الأول | K5: الفصل الثاني | N5: الفصل الأول | Q5: الفصل الثاني | T5: الفصل الأول | W5: الفصل الثاني | Z5: الفصل الأول | AC5: الفصل الثاني | AF5: الفصل الأول | AI5: الفصل الثاني | AL5: الفصل الأول | AO5: الفصل الثاني | AR5: الفصل الأول | AU5: الفصل الثاني | AX5: الفصل الأول | BA5: الفصل الثاني | BD5: الفصل الأول | BG5: الفصل الثاني | BJ5: الفصل الأول | BM5: الفصل الثاني | BP5: الفصل الأول | BS5: الفصل الثاني
H6: اعمـــــال السنة | I6: درجة الأمتحان | J6: المجمــــــــــوع | K6: اعمـــــال السنة | L6: درجة الأمتحان | M6: المجمــــــــــوع | N6: اعمـــــال السنة | O6: درجة الأمتحان | P6: المجمــــــــــوع | Q6: اعمـــــال السنة | R6: درجة الأمتحان | S6: المجمــــــــــوع | T6: اعمـــــال السنة | U6: درجة الأمتحان | V6: المجمــــــــــوع | W6: اعمـــــال السنة | X6: درجة الأمتحان | Y6: المجمــــــــــوع | Z6: اعمـــــال السنة | AA6: درجة الأمتحان | AB6: المجمــــــــــوع | AC6: اعمـــــال السنة | AD6: درجة الأمتحان | AE6: المجمــــــــــوع | AF6: اعمـــــال السنة | AG6: درجة الأمتحان | AH6: المجمــــــــــوع | AI6: اعمـــــال السنة | AJ6: درجة الأمتحان | AK6: المجمــــــــــوع | AL6: اعمـــــال السنة | AM6: درجة الأمتحان | AN6: المجمــــــــــوع | AO6: اعمـــــال السنة | AP6: درجة الأمتحان | AQ6: المجمــــــــــوع | AR6: اعمـــــال السنة | AS6: درجة الأمتحان | AT6: المجمــــــــــوع | AU6: اعمـــــال السنة | AV6: درجة الأمتحان | AW6: المجمــــــــــوع | AX6: اعمـــــال السنة | AY6: درجة الأمتحان | AZ6: المجمــــــــــوع | BA6: اعمـــــال السنة | BB6: درجة الأمتحان | BC6: المجمــــــــــوع | BD6: اعمـــــال السنة | BE6: درجة الأمتحان | BF6: المجمــــــــــوع | BG6: اعمـــــال السنة | BH6: درجة الأمتحان | BI6: المجمــــــــــوع | BJ6: اعمـــــال السنة | BK6: درجة الأمتحان | BL6: المجمــــــــــوع | BM6: اعمـــــال السنة | BN6: درجة الأمتحان | BO6: المجمــــــــــوع | BP6: اعمـــــال السنة | BQ6: درجة الأمتحان | BR6: المجمــــــــــوع | BS6: اعمـــــال السنة | BT6: درجة الأمتحان | BU6: المجمــــــــــوع
H8: 20 | I8: 20 | J8: 40 | K8: 20 | L8: 20 | M8: 40 | N8: 50 | O8: 50 | P8: 100 | Q8: 50 | R8: 50 | S8: 100 | T8: 50 | U8: 50 | V8: 100 | W8: 50 | X8: 50 | Y8: 100 | Z8: 20 | AA8: 20 | AB8: 40 | AC8: 20 | AD8: 20 | AE8: 40 | AF8: 50 | AG8: 50 | AH8: 100 | AI8: 50 | AJ8: 50 | AK8: 100 | AL8: 30 | AM8: 30 | AN8: 60 | AO8: 30 | AP8: 30 | AQ8: 60 | AR8: 30 | AS8: 30 | AT8: 60 | AU8: 30 | AV8: 30 | AW8: 60 | AX8: 30 | AY8: 30 | AZ8: 60 | BA8: 30 | BB8: 30 | BC8: 60 | BD8: 20 | BE8: 20 | BF8: 40 | BG8: 20 | BH8: 20 | BI8: 40 | BJ8: 20 | BK8: 20 | BL8: 40 | BM8: 20 | BN8: 20 | BO8: 40 | BP8: 10 | BQ8: 10 | BR8: 20 | BS8: 10 | BT8: 10 | BU8: 20
B9: 2 | C9: 3 | D9: 4 | E9: 5 | F9: 6 | G9: 7 | H9: 8 | I9: 9 | J9: 10 | K9: 11 | L9: 12 | M9: 13 | N9: 14 | O9: 15 | P9: 16 | Q9: 17 | R9: 18 | S9: 19 | T9: 20 | U9: 21 | V9: 22 | W9: 23 | X9: 24 | Y9: 25 | Z9: 26 | AA9: 27 | AB9: 28 | AC9: 29 | AD9: 30 | AE9: 31 | AF9: 32 | AG9: 33 | AH9: 34 | AI9: 35 | AJ9: 36 | AK9: 37 | AL9: 38 | AM9: 39 | AN9: 40 | AO9: 41 | AP9: 42 | AQ9: 43 | AR9: 44 | AS9: 45 | AT9: 46 | AU9: 47 | AV9: 48 | AW9: 49 | AX9: 50 | AY9: 51 | AZ9: 52 | BA9: 53 | BB9: 54 | BC9: 55 | BD9: 56 | BE9: 57 | BF9: 58 | BG9: 59 | BH9: 60 | BI9: 61 | BJ9: 62 | BK9: 63 | BL9: 64 | BM9: 65 | BN9: 66 | BO9: 67 | BP9: 68 | BQ9: 69 | BR9: 70 | BS9: 71 | BT9: 72 | BU9: 73 | BV9: 74 | BW9: 75 | BX9: 76 | BY9: 77 | BZ9: 78 | CA9: 79 | CB9: 80 | CC9: 81 | CD9: 82 | CE9: 83 | CF9: 84 | CG9: 85 | CH9: 86 | CI9: 87 | CJ9: 88 | CK9: 89
B10: 1 | C10: طالب 1 | D10: انثى | E10: 2/1 | H10: 20 | I10: 18 | J10: 38 | K10: 10 | L10: 11 | M10: 21 | N10: 47 | O10: 45 | P10: 92 | Q10: 37 | R10: 32 | S10: 69 | T10: 47 | U10: 48 | V10: 95 | W10: 23 | X10: 32 | Y10: 55 | Z10: 18 | AA10: 13 | AB10: 31 | AC10: 14 | AD10: 16 | AE10: 30 | AF10: 45 | AG10: 47 | AH10: 92 | AI10: 20 | AJ10: 5 | AK10: 25 | AL10: 30 | AM10: 25 | AN10: 55 | AO10: 19 | AP10: 15 | AQ10: 34 | AR10: 30 | AS10: 27 | AT10: 57 | AU10: 14 | AV10: 14 | AW10: 28 | AX10: 27 | AY10: 24 | AZ10: 51 | BA10: 16 | BB10: 9 | BC10: 25 | BD10: 17 | BE10: 20 | BF10: 37 | BG10: 17 | BH10: 20 | BI10: 37 | BJ10: 18 | BK10: 14 | BL10: 32 | BM10: 12 | BN10: 8 | BO10: 20 | BP10: 10 | BQ10: 10 | BR10: 20 | BS10: 8 | BT10: 9 | BU10: 17 | BV10: 600 | BW10: 90.90909091 | BX10: =IF(BW10="","",evaltion(BW10)) -> ممتاز | BY10: =IF(BX10<>"", "ناجح بتقدير"&" "&BX10&" "&CK10,IF(COUNTBLANK($BZ10:$CJ10)=11,a,"يحتاج إلى عناية في : "&textjoin(" و ",$BZ10:$CJ10))) -> ناجح بتقدير ممتاز الترتيب الأول | CK10: =IF(BV10="","",IF(RANK(BV10,$BV$10:$BV$1000)>$CK$1,"",IF(COUNTIF($BV$10:BV10,BV10)=1,Kh_RANK(BV10,$BV$10:$BV$713),Kh_RANK(BV10,$BV$10:$BV$1000)&" "&"مكرر"))) -> الترتيب الأول
B11: 2 | C11: طالب 2 | D11: انثى | E11: 3/1 | H11: 10 | I11: 19 | J11: 29 | K11: 19 | L11: 19 | M11: 38 | N11: 35 | O11: 39 | P11: 74 | Q11: 45 | R11: 46 | S11: 91 | T11: 40 | U11: 36 | V11: 76 | W11: 27 | X11: 25 | Y11: 52 | Z11: 16 | AA11: 10 | AB11: 26 | AC11: 16 | AD11: 10 | AE11: 26 | AF11: 24 | AG11: 20 | AH11: 44 | AI11: 43 | AJ11: 27 | AK11: 70 | AL11: 17 | AM11: 19 | AN11: 36 | AO11: 20 | AP11: 22 | AQ11: 42 | AR11: 22 | AS11: 16 | AT11: 38 | AU11: 30 | AV11: 23 | AW11: 53 | AX11: 22 | AY11: 24 | AZ11: 46 | BA11: 29 | BB11: 18 | BC11: 47 | BD11: 13 | BE11: 11 | BF11: 24 | BG11: 13 | BH11: 11 | BI11: 24 | BJ11: 16 | BK11: 14 | BL11: 30 | BM11: 19 | BN11: 20 | BO11: 39 | BP11: 10 | BQ11: 10 | BR11: 20 | BS11: 9 | BT11: 9 | BU11: 18 | BX11: =IF(BW11="","",evaltion(BW11)) ->  | BY11: =IF(BX11<>"", "ناجح بتقدير"&" "&BX11&" "&CK11,IF(COUNTBLANK($BZ11:$CJ11)=11,a,"يحتاج إلى عناية في : "&textjoin(" و ",$BZ11:$CJ11))) -> يحتاج إلى عناية في : تقنية المعلومات و الرباضيـات | CC11: تقنية المعلومات | CD11: الرباضيـات | CK11: =IF(BV11="","",IF(RANK(BV11,$BV$10:$BV$1000)>$CK$1,"",IF(COUNTIF($BV$10:BV11,BV11)=1,Kh_RANK(BV11,$BV$10:$BV$713),Kh_RANK(BV11,$BV$10:$BV$1000)&" "&"مكرر"))) -> 
B12: 3 | C12: طالب 3 | D12: انثى | E12: 4/1 | H12: 18 | I12: 17 | J12: 35 | K12: 16 | L12: 19 | M12: 35 | N12: 37 | O12: 43 | P12: 80 | Q12: 47 | R12: 43 | S12: 90 | T12: 33 | U12: 32 | V12: 65 | W12: 40 | X12: 39 | Y12: 79 | Z12: 14 | AA12: 16 | AB12: 30 | AC12: 18 | AD12: 16 | AE12: 34 | AF12: 38 | AG12: 37 | AH12: 75 | AI12: 39 | AJ12: 31 | AK12: 70 | AL12: 19 | AM12: 20 | AN12: 39 | AO12: 22 | AP12: 18 | AQ12: 40 | AR12: 29 | AS12: 25 | AT12: 54 | AU12: 25 | AV12: 23 | AW12: 48 | AX12: 26 | AY12: 27 | AZ12: 53 | BA12: 20 | BB12: 22 | BC12: 42 | BD12: 11 | BE12: 18 | BF12: 29 | BG12: 11 | BH12: 18 | BI12: 29 | BJ12: 17 | BK12: 13 | BL12: 30 | BM12: 19 | BN12: 15 | BO12: 34 | BP12: 8 | BQ12: 9 | BR12: 17 | BS12: 9 | BT12: 10 | BU12: 19 | BX12: =IF(BW12="","",evaltion(BW12)) ->  | BY12: =IF(BX12<>"", "ناجح بتقدير"&" "&BX12&" "&CK12,IF(COUNTBLANK($BZ12:$CJ12)=11,a,"يحتاج إلى عناية في : "&textjoin(" و ",$BZ12:$CJ12))) -> يحتاج إلى عناية في : تقنية المعلومات و الجغرافيا | CC12: تقنية المعلومات | CI12: الجغرافيا | CK12: =IF(BV12="","",IF(RANK(BV12,$BV$10:$BV$1000)>$CK$1,"",IF(COUNTIF($BV$10:BV12,BV12)=1,Kh_RANK(BV12,$BV$10:$BV$713),Kh_RANK(BV12,$BV$10:$BV$1000)&" "&"مكرر"))) -> 
B13: 4 | C13: طالب 4 | D13: انثى | E13: 5/1 | H13: 16 | I13: 15 | J13: 31 | K13: 20 | L13: 20 | M13: 40 | N13: 33 | O13: 37 | P13: 70 | Q13: 34 | R13: 41 | S13: 75 | T13: 30 | U13: 40 | V13: 70 | W13: 30 | X13: 40 | Y13: 70 | Z13: 13 | AA13: 7 | AB13: 20 | AC13: 19 | AD13: 15 | AE13: 34 | AF13: 32 | AG13: 27 | AH13: 59 | AI13: 49 | AJ13: 33 | AK13: 82 | AL13: 13 | AM13: 13 | AN13: 26 | AO13: 28 | AP13: 28 | AQ13: 56 | AR13: 27 | AS13: 21 | AT13: 48 | AU13: 23 | AV13: 28 | AW13: 51 | AX13: 26 | AY13: 26 | AZ13: 52 | BA13: 29 | BB13: 26 | BC13: 55 | BD13: 12 | BE13: 15 | BF13: 27 | BG13: 12 | BH13: 15 | BI13: 27 | BJ13: 18 | BK13: 15 | BL13: 33 | BM13: 16 | BN13: 14 | BO13: 30 | BP13: 9 | BQ13: 9 | BR13: 18 | BS13: 9 | BT13: 8 | BU13: 17 | BX13: =IF(BW13="","",evaltion(BW13)) ->  | BY13: =IF(BX13<>"", "ناجح بتقدير"&" "&BX13&" "&CK13,IF(COUNTBLANK($BZ13:$CJ13)=11,a,"يحتاج إلى عناية في : "&textjoin(" و ",$BZ13:$CJ13))) -> يحتاج إلى عناية في : الفيزياء و الجغرافيا | CE13: الفيزياء | CI13: الجغرافيا | CK13: =IF(BV13="","",IF(RANK(BV13,$BV$10:$BV$1000)>$CK$1,"",IF(COUNTIF($BV$10:BV13,BV13)=1,Kh_RANK(BV13,$BV$10:$BV$713),Kh_RANK(BV13,$BV$10:$BV$1000)&" "&"مكرر"))) -> 
B14: 5 | C14: طالب 5 | D14: انثى | E14: 2/1 | H14: 16 | I14: 16 | J14: 32 | K14: 10 | L14: 6 | M14: 16 | N14: 36 | O14: 38 | P14: 74 | Q14: 24 | R14: 29 | S14: 53 | T14: 32 | U14: 34 | V14: 66 | W14: 32 | X14: 34 | Y14: 66 | Z14: 16 | AA14: 9 | AB14: 25 | AC14: 8 | AD14: 9 | AE14: 17 | AF14: 33 | AG14: 23 | AH14: 56 | AI14: 34 | AJ14: 5 | AK14: 39 | AL14: 21 | AM14: 16 | AN14: 37 | AO14: 8 | AP14: 6 | AQ14: 14 | AR14: 26 | AS14: 20 | AT14: 46 | AU14: 16 | AV14: 4 | AW14: 20 | AX14: 16 | AY14: 22 | AZ14: 38 | BA14: 15 | BB14: 14 | BC14: 29 | BD14: 16 | BE14: 16 | BF14: 32 | BG14: 16 | BH14: 16 | BI14: 32 | BJ14: 15 | BK14: 12 | BL14: 27 | BM14: 7 | BN14: 7 | BO14: 14 | BP14: 9 | BQ14: 9 | BR14: 18 | BS14: 3 | BT14: 4 | BU14: 7 | BV14: 451 | BW14: 68.33333333 | BX14: =IF(BW14="","",evaltion(BW14)) -> جيد فقط | BY14: =IF(BX14<>"", "ناجح بتقدير"&" "&BX14&" "&CK14,IF(COUNTBLANK($BZ14:$CJ14)=11,a,"يحتاج إلى عناية في : "&textjoin(" و ",$BZ14:$CJ14))) -> ناجح بتقدير جيد فقط الترتيب الرابع | CK14: =IF(BV14="","",IF(RANK(BV14,$BV$10:$BV$1000)>$CK$1,"",IF(COUNTIF($BV$10:BV14,BV14)=1,Kh_RANK(BV14,$BV$10:$BV$713),Kh_RANK(BV14,$BV$10:$BV$1000)&" "&"مكرر"))) -> الترتيب الرابع
B15: 6 | C15: طالب 6 | D15: انثى | E15: 3/1 | H15: 10 | I15: 11 | J15: 21 | K15: 20 | L15: 18 | M15: 38 | N15: 37 | O15: 32 | P15: 69 | Q15: 47 | R15: 45 | S15: 92 | T15: 23 | U15: 32 | V15: 55 | W15: 44 | X15: 38 | Y15: 82 | Z15: 14 | AA15: 16 | AB15: 30 | AC15: 18 | AD15: 13 | AE15: 31 | AF15: 20 | AG15: 5 | AH15: 25 | AI15: 45 | AJ15: 47 | AK15: 92 | AL15: 19 | AM15: 15 | AN15: 34 | AO15: 30 | AP15: 25 | AQ15: 55 | AR15: 14 | AS15: 14 | AT15: 28 | AU15: 30 | AV15: 27 | AW15: 57 | AX15: 16 | AY15: 9 | AZ15: 25 | BA15: 27 | BB15: 24 | BC15: 51 | BD15: 13 | BE15: 8 | BF15: 21 | BG15: 13 | BH15: 8 | BI15: 21 | BJ15: 12 | BK15: 8 | BL15: 20 | BM15: 18 | BN15: 14 | BO15: 32 | BP15: 8 | BQ15: 9 | BR15: 17 | BS15: 10 | BT15: 10 | BU15: 20 | BX15: =IF(BW15="","",evaltion(BW15)) ->  | BY15: =IF(BX15<>"", "ناجح بتقدير"&" "&BX15&" "&CK15,IF(COUNTBLANK($BZ15:$CJ15)=11,a,"يحتاج إلى عناية في : "&textjoin(" و ",$BZ15:$CJ15))) -> يحتاج إلى عناية في : تقنية المعلومات و الرباضيـات و الكيمياء و الأحياء | CC15: تقنية المعلومات | CD15: الرباضيـات | CF15: الكيمياء | CG15: الأحياء | CK15: =IF(BV15="","",IF(RANK(BV15,$BV$10:$BV$1000)>$CK$1,"",IF(COUNTIF($BV$10:BV15,BV15)=1,Kh_RANK(BV15,$BV$10:$BV$713),Kh_RANK(BV15,$BV$10:$BV$1000)&" "&"مكرر"))) -> 
B16: 7 | C16: طالب 7 | D16: انثى | E16: 4/1 | H16: 19 | I16: 19 | J16: 38 | K16: 10 | L16: 19 | M16: 29 | N16: 45 | O16: 46 | P16: 91 | Q16: 35 | R16: 39 | S16: 74 | T16: 27 | U16: 25 | V16: 52 | W16: 26 | X16: 29 | Y16: 55 | Z16: 16 | AA16: 10 | AB16: 26 | AC16: 16 | AD16: 10 | AE16: 26 | AF16: 43 | AG16: 27 | AH16: 70 | AI16: 24 | AJ16: 20 | AK16: 44 | AL16: 20 | AM16: 22 | AN16: 42 | AO16: 17 | AP16: 19 | AQ16: 36 | AR16: 30 | AS16: 23 | AT16: 53 | AU16: 22 | AV16: 16 | AW16: 38 | AX16: 29 | AY16: 18 | AZ16: 47 | BA16: 22 | BB16: 24 | BC16: 46 | BD16: 14 | BE16: 17 | BF16: 31 | BG16: 14 | BH16: 17 | BI16: 31 | BJ16: 19 | BK16: 20 | BL16: 39 | BM16: 16 | BN16: 14 | BO16: 30 | BP16: 9 | BQ16: 9 | BR16: 18 | BS16: 10 | BT16: 10 | BU16: 20 | BX16: =IF(BW16="","",evaltion(BW16)) ->  | BY16: =IF(BX16<>"", "ناجح بتقدير"&" "&BX16&" "&CK16,IF(COUNTBLANK($BZ16:$CJ16)=11,a,"يحتاج إلى عناية في : "&textjoin(" و ",$BZ16:$CJ16))) -> يحتاج إلى عناية في : تقنية المعلومات و الجغرافيا | CC16: تقنية المعلومات | CI16: الجغرافيا | CK16: =IF(BV16="","",IF(RANK(BV16,$BV$10:$BV$1000)>$CK$1,"",IF(COUNTIF($BV$10:BV16,BV16)=1,Kh_RANK(BV16,$BV$10:$BV$713),Kh_RANK(BV16,$BV$10:$BV$1000)&" "&"مكرر"))) -> 
B17: 8 | C17: طالب 8 | D17: انثى | E17: 2/1 | H17: 16 | I17: 19 | J17: 35 | K17: 18 | L17: 17 | M17: 35 | N17: 47 | O17: 43 | P17: 90 | Q17: 37 | R17: 43 | S17: 80 | T17: 40 | U17: 39 | V17: 79 | W17: 40 | X17: 39 | Y17: 79 | Z17: 18 | AA17: 16 | AB17: 34 | AC17: 14 | AD17: 16 | AE17: 30 | AF17: 39 | AG17: 31 | AH17: 70 | AI17: 38 | AJ17: 37 | AK17: 75 | AL17: 22 | AM17: 18 | AN17: 40 | AO17: 19 | AP17: 20 | AQ17: 39 | AR17: 25 | AS17: 23 | AT17: 48 | AU17: 29 | AV17: 25 | AW17: 54 | AX17: 20 | AY17: 22 | AZ17: 42 | BA17: 26 | BB17: 27 | BC17: 53 | BD17: 16 | BE17: 15 | BF17: 31 | BG17: 16 | BH17: 15 | BI17: 31 | BJ17: 19 | BK17: 15 | BL17: 34 | BM17: 17 | BN17: 13 | BO17: 30 | BP17: 9 | BQ17: 10 | BR17: 19 | BS17: 8 | BT17: 9 | BU17: 17 | BV17: 522 | BW17: 79.09090909 | BX17: =IF(BW17="","",evaltion(BW17)) -> جيد جدا | BY17: =IF(BX17<>"", "ناجح بتقدير"&" "&BX17&" "&CK17,IF(COUNTBLANK($BZ17:$CJ17)=11,a,"يحتاج إلى عناية في : "&textjoin(" و ",$BZ17:$CJ17))) -> ناجح بتقدير جيد جدا الترتيب الثالث | CK17: =IF(BV17="","",IF(RANK(BV17,$BV$10:$BV$1000)>$CK$1,"",IF(COUNTIF($BV$10:BV17,BV17)=1,Kh_RANK(BV17,$BV$10:$BV$713),Kh_RANK(BV17,$BV$10:$BV$1000)&" "&"مكرر"))) -> الترتيب الثالث
B18: 9 | C18: طالب 9 | D18: ذكر | E18: 6/1 | H18: 20 | I18: 20 | J18: 40 | K18: 16 | L18: 15 | M18: 31 | N18: 34 | O18: 41 | P18: 75 | Q18: 33 | R18: 37 | S18: 70 | T18: 44 | U18: 38 | V18: 82 | W18: 44 | X18: 38 | Y18: 82 | Z18: 19 | AA18: 15 | AB18: 34 | AC18: 13 | AD18: 7 | AE18: 20 | AF18: 49 | AG18: 33 | AH18: 82 | AI18: 32 | AJ18: 27 | AK18: 59 | AL18: 28 | AM18: 28 | AN18: 56 | AO18: 13 | AP18: 13 | AQ18: 26 | AR18: 23 | AS18: 28 | AT18: 51 | AU18: 27 | AV18: 21 | AW18: 48 | AX18: 29 | AY18: 26 | AZ18: 55 | BA18: 26 | BB18: 26 | BC18: 52 | BD18: 14 | BE18: 13 | BF18: 27 | BG18: 14 | BH18: 13 | BI18: 27 | BJ18: 16 | BK18: 14 | BL18: 30 | BM18: 18 | BN18: 15 | BO18: 33 | BP18: 9 | BQ18: 8 | BR18: 17 | BS18: 9 | BT18: 9 | BU18: 18 | BV18: 549 | BW18: 83.18181818 | BX18: =IF(BW18="","",evaltion(BW18)) -> جيد جدا | BY18: =IF(BX18<>"", "ناجح بتقدير"&" "&BX18&" "&CK18,IF(COUNTBLANK($BZ18:$CJ18)=11,a,"يحتاج إلى عناية في : "&textjoin(" و ",$BZ18:$CJ18))) -> ناجح بتقدير جيد جدا الترتيب الثاني | CK18: =IF(BV18="","",IF(RANK(BV18,$BV$10:$BV$1000)>$CK$1,"",IF(COUNTIF($BV$10:BV18,BV18)=1,Kh_RANK(BV18,$BV$10:$BV$713),Kh_RANK(BV18,$BV$10:$BV$1000)&" "&"مكرر"))) -> الترتيب الثاني
B19: 10 | C19: طالب 10 | D19: ذكر | E19: 3/1 | H19: 10 | I19: 6 | J19: 16 | K19: 16 | L19: 16 | M19: 32 | N19: 24 | O19: 29 | P19: 53 | Q19: 36 | R19: 38 | S19: 74 | T19: 26 | U19: 29 | V19: 55 | W19: 26 | X19: 29 | Y19: 55 | Z19: 8 | AA19: 9 | AB19: 17 | AC19: 16 | AD19: 9 | AE19: 25 | AF19: 34 | AG19: 5 | AH19: 39 | AI19: 33 | AJ19: 23 | AK19: 56 | AL19: 8 | AM19: 6 | AN19: 14 | AO19: 21 | AP19: 16 | AQ19: 37 | AR19: 16 | AS19: 4 | AT19: 20 | AU19: 26 | AV19: 20 | AW19: 46 | AX19: 15 | AY19: 14 | AZ19: 29 | BA19: 16 | BB19: 22 | BC19: 38 | BD19: 5 | BE19: 7 | BF19: 12 | BG19: 5 | BH19: 7 | BI19: 12 | BJ19: 7 | BK19: 7 | BL19: 14 | BM19: 15 | BN19: 12 | BO19: 27 | BP19: 3 | BQ19: 4 | BR19: 7 | BS19: 9 | BT19: 9 | BU19: 18 | BX19: =IF(BW19="","",evaltion(BW19)) ->  | BY19: =IF(BX19<>"", "ناجح بتقدير"&" "&BX19&" "&CK19,IF(COUNTBLANK($BZ19:$CJ19)=11,a,"يحتاج إلى عناية في : "&textjoin(" و ",$BZ19:$CJ19))) -> يحتاج إلى عناية في : التربية الأسلامية و تقنية المعلومات و الرباضيـات و الفيزياء و الكيمياء و الأحياء و التاريخ و الجغرافيا و علم الأجتماع | BZ19: التربية الأسلامية | CC19: تقنية المعلومات | CD19: الرباضيـات | CE19: الفيزياء | CF19: الكيمياء | CG19: الأحياء | CH19: التاريخ | CI19: الجغرافيا | CJ19: علم الأجتماع | CK19: =IF(BV19="","",IF(RANK(BV19,$BV$10:$BV$1000)>$CK$1,"",IF(COUNTIF($BV$10:BV19,BV19)=1,Kh_RANK(BV19,$BV$10:$BV$713),Kh_RANK(BV19,$BV$10:$BV$1000)&" "&"مكرر"))) -> 

Sheet ك د ا
G1: كشف رصد درجات أعمال السنة وامتحان نهاية الفصلين لسنوات النقل بمرحلتي التعليم الأساسي والثانوي | AK1: نموذج امتحان رقم ( 3 ) | BG1: 1 | BH1: الأول
A2: وزارة التربية والتعليم | BG2: 2 | BH2: الثاني
A3: إدارة الامتحانات | J3: المرحلة / التعليم الثانوي الصف / الأول القسم / عـــــــــــــــــــام | BG3: 3 | BH3: الثالث
F4: العام الدراسي : 1437هـ - 1438هـ الموافق : 2016 - 2017 م مكتب الامتحانات بمنطقة / تاجوراء | BG4: 4 | BH4: الرابع
A5: 1 | B5: 2 | C5: 3 | D5: 4 | E5: 5 | F5: 6 | G5: 7 | H5: 8 | I5: 9 | J5: 10 | K5: 11 | L5: 12 | M5: 13 | N5: 14 | O5: 15 | P5: 16 | Q5: 17 | R5: 18 | S5: 19 | T5: 20 | U5: 21 | V5: 22 | W5: 23 | X5: 24 | Y5: 25 | Z5: 26 | AA5: 27 | AB5: 28 | AC5: 29 | AD5: 30 | AE5: 31 | AF5: 32 | AG5: 33 | AH5: 34 | AI5: 35 | AJ5: 36 | AK5: 37 | AL5: 38 | AM5: 39 | AN5: 40 | AO5: 41 | AP5: 42 | AQ5: 43 | AR5: 44 | AS5: 45 | AT5: 46 | AU5: 47 | AV5: 48 | AW5: 49 | AX5: 50 | AY5: 51 | AZ5: 52 | BA5: 53 | BB5: 54 | BC5: 55 | BD5: 56 | BE5: 57 | BF5: 58 | BG5: 5 | BH5: الخامس
A6: رقم مسلسل | B6: رقم الجلوس | C6: اسم الطالب بالكامل | D6: الرقم السري | F6: المواد الدراسية | AM6: المجموع الكلي | AN6: النسبة | AO6: التقدير | AP6: نتيجة الطالب | BG6: 6 | BH6: السادس
F7: التربية الاسلامية | H7: 2 | I7: اللغة العربية | K7: 5 | L7: اللغة الانجليزية | N7: 5 | O7: تقنية المعلومات | Q7: 2 | R7: الرياضيات | T7: 5 | U7: الفيزياء | W7: 3 | X7: الكيمياء | Z7: 3 | AA7: الاحياء | AC7: 3 | AD7: التاريخ | AF7: 2 | AG7: الجغرافيا | AI7: 2 | AJ7: علم الاجتماع | AL7: 1 | BF7: 12 | BG7: 7 | BH7: السابع
F8: اعمال السنة | G8: محموع درجتى امتحان الفصلين | H8: المجموع | I8: اعمال السنة | J8: محموع درجتى امتحان الفصلين | K8: المجموع | L8: اعمال السنة | M8: محموع درجتى امتحان الفصلين | N8: المجموع | O8: اعمال السنة | P8: محموع درجتى امتحان الفصلين | Q8: المجموع | R8: اعمال السنة | S8: محموع درجتى امتحان الفصلين | T8: المجموع | U8: اعمال السنة | V8: محموع درجتى امتحان الفصلين | W8: المجموع | X8: اعمال السنة | Y8: محموع درجتى امتحان الفصلين | Z8: المجموع | AA8: اعمال السنة | AB8: محموع درجتى امتحان الفصلين | AC8: المجموع | AD8: اعمال السنة | AE8: محموع درجتى امتحان الفصلين | AF8: المجموع | AG8: اعمال السنة | AH8: محموع درجتى امتحان الفصلين | AI8: المجموع | AJ8: اعمال السنة | AK8: محموع درجتى امتحان الفصلين | AL8: المجموع | BB8: ناجـــــــــــــــــــح | BC8: له دور ثان في | BD8: راسب في | BG8: 8 | BH8: الثامن
E9: النهاية الصغرى | G9: 16 | H9: 40 | J9: 40 | K9: 100 | M9: 40 | N9: 100 | P9: 16 | Q9: 40 | S9: 40 | T9: 100 | V9: 24 | W9: 60 | Y9: 24 | Z9: 60 | AB9: 24 | AC9: 60 | AE9: 16 | AF9: 40 | AH9: 16 | AI9: 40 | AK9: 8 | AL9: 20 | BE9: تسلسل الترتيب | BG9: 9 | BH9: التاسع
E10: النهاية العظمى | F10: 40 | G10: 40 | H10: 80 | I10: 100 | J10: 100 | K10: 200 | L10: 100 | M10: 100 | N10: 200 | O10: 40 | P10: 40 | Q10: 80 | R10: 100 | S10: 100 | T10: 200 | U10: 60 | V10: 60 | W10: 120 | X10: 60 | Y10: 60 | Z10: 120 | AA10: 60 | AB10: 60 | AC10: 120 | AD10: 40 | AE10: 40 | AF10: 80 | AG10: 40 | AH10: 40 | AI10: 80 | AJ10: 20 | AK10: 20 | AL10: 40 | BB10: ناحج | BC10: دور ثاني | BD10: غائبون | BF10: الترتيب | BG10: 10 | BH10: العاشر
A11: 1 | C11: طالب 1 | E11: الفصل الاول | F11: 20 | G11: 18 | H11: 38 | I11: 47 | J11: 45 | K11: 92 | L11: 47 | M11: 48 | N11: 95 | O11: 18 | P11: 13 | Q11: 31 | R11: 45 | S11: 47 | T11: 92 | U11: 30 | V11: 25 | W11: 55 | X11: 30 | Y11: 27 | Z11: 57 | AA11: 27 | AB11: 24 | AC11: 51 | AD11: 17 | AE11: 20 | AF11: 37 | AG11: 18 | AH11: 14 | AI11: 32 | AJ11: 10 | AK11: 10 | AL11: 20 | AM11: =IF(AND(H13>=$H$9,K13>=$K$9,N13>=$N$9,Q13>=$Q$9,T13>=$T$9,W13>=$W$9,Z13>=$Z$9,AC13>=$AC$9,AF13>=$AF$9,AI13>=$AI$9,AL13>=$AL$9),SUM(H13,K13,N13,Q13,T13,W13,Z13,AC13,AF13,AI13,AL13),0) -> 961 | AN11: =AM11/1320*100 -> 72.8030303 | AO11: =evaltion(AN11) -> جيد فقط | AP11: =IF(AM11=0,"له دور ثان في",IF(AM11>0,"ناجـــــــــــــــــــح")) -> ناجـــــــــــــــــــح | BA11: =SUMPRODUCT(--(AP12:AZ13<>"")) -> 0 | BB11: =IF(AP11=$BB$8,COUNTIF($AP$11:AP11,AP11),"") -> 1 | BC11: =IF(AP11=$BC$8,COUNTIF($AP$11:AP11,AP11),"") ->  | BD11: =IF(AP11=$BD$8,COUNTIF($AP$11:AP11,AP11),"") ->  | BE11: =IF(AP11="ناجـــــــــــــــــــح",RANK(AM11,$AM$11:$AM$1200),"") -> 5 | BF11: =IF(AM11="","",IF(RANK(AM11,$AM$11:$AM$1200)>$BF$7,"",IF(COUNTIF($AM$11:AM11,AM11)=1,Kh_RANK(AM11,$AM$11:$AM$1200),Kh_RANK(AM11,$AM$11:$AM$1200)&" "&"مكرر"))) -> الترتيب الخامس
E12: الفصل الثاني | F12: 10 | G12: 11 | H12: 21 | I12: 37 | J12: 32 | K12: 69 | L12: 23 | M12: 32 | N12: 55 | O12: 14 | P12: 16 | Q12: 30 | R12: 20 | S12: 5 | T12: 25 | U12: 19 | V12: 15 | W12: 34 | X12: 14 | Y12: 14 | Z12: 28 | AA12: 16 | AB12: 9 | AC12: 25 | AD12: 17 | AE12: 20 | AF12: 37 | AG12: 12 | AH12: 8 | AI12: 20 | AJ12: 8 | AK12: 9 | AL12: 17 | AP12: =IF(H13<$H$9,$F$7,"") ->  | AQ12: =IF(K13<$K$9,$L$7,"") ->  | AR12: =IF(N13<$N$9,#REF!,"") ->  | AS12: =IF(Q13<$Q$9,$O$7,"") ->  | AT12: =IF(T13<$T$9,$R$7,"") ->  | AU12: =IF(W13<$W$9,$U$7,"") ->  | AV12: =IF(Z13<$Z$9,$X$7,"") ->  | AW12: =IF(AC13<$AC$9,$AA$7,"") ->  | AX12: =IF(AF13<$AF$9,$AD$7,"") ->  | AY12: =IF(AI13<$AI$9,$AG$7,"") ->  | AZ12: =IF(AL13<$AL$9,$AJ$7,"") -> 
E13: مجموع الفصلين | F13: 30 | G13: 29 | H13: 59 | I13: 84 | J13: 77 | K13: 161 | L13: 70 | M13: 80 | N13: 150 | O13: 32 | P13: 29 | Q13: 61 | R13: 65 | S13: 52 | T13: 117 | U13: 49 | V13: 40 | W13: 89 | X13: 44 | Y13: 41 | Z13: 85 | AA13: 43 | AB13: 33 | AC13: 76 | AD13: 34 | AE13: 40 | AF13: 74 | AG13: 30 | AH13: 22 | AI13: 52 | AJ13: 18 | AK13: 19 | AL13: 37
A14: 2 | C14: طالب 2 | E14: الفصل الاول | F14: 10 | G14: 19 | H14: 29 | I14: 35 | J14: 39 | K14: 74 | L14: 40 | M14: 36 | N14: 76 | O14: 16 | P14: 10 | Q14: 26 | R14: 24 | S14: 20 | T14: 44 | U14: 17 | V14: 19 | W14: 36 | X14: 22 | Y14: 16 | Z14: 38 | AA14: 22 | AB14: 24 | AC14: 46 | AD14: 13 | AE14: 11 | AF14: 24 | AG14: 16 | AH14: 14 | AI14: 30 | AJ14: 10 | AK14: 10 | AL14: 20 | AM14: =IF(AND(H16>=$H$9,K16>=$K$9,N16>=$N$9,Q16>=$Q$9,T16>=$T$9,W16>=$W$9,Z16>=$Z$9,AC16>=$AC$9,AF16>=$AF$9,AI16>=$AI$9,AL16>=$AL$9),SUM(H16,K16,N16,Q16,T16,W16,Z16,AC16,AF16,AI16,AL16),0) -> 943 | AN14: =AM14/1320*100 -> 71.43939394 | AO14: =evaltion(AN14) -> جيد فقط | AP14: =IF(AM14=0,"له دور ثان في",IF(AM14>0,"ناجـــــــــــــــــــح")) -> ناجـــــــــــــــــــح
E15: الفصل الثاني | F15: 19 | G15: 19 | H15: 38 | I15: 45 | J15: 46 | K15: 91 | L15: 27 | M15: 25 | N15: 52 | O15: 16 | P15: 10 | Q15: 26 | R15: 43 | S15: 27 | T15: 70 | U15: 20 | V15: 22 | W15: 42 | X15: 30 | Y15: 23 | Z15: 53 | AA15: 29 | AB15: 18 | AC15: 47 | AD15: 13 | AE15: 11 | AF15: 24 | AG15: 19 | AH15: 20 | AI15: 39 | AJ15: 9 | AK15: 9 | AL15: 18 | AP15: =IF(H16<$H$9,$F$7,"") ->  | AQ15: =IF(K16<$K$9,$L$7,"") ->  | AR15: =IF(N16<$N$9,#REF!,"") ->  | AS15: =IF(Q16<$Q$9,$O$7,"") ->  | AT15: =IF(T16<$T$9,$R$7,"") ->  | AU15: =IF(W16<$W$9,$U$7,"") ->  | AV15: =IF(Z16<$Z$9,$X$7,"") ->  | AW15: =IF(AC16<$AC$9,$AA$7,"") ->  | AX15: =IF(AF16<$AF$9,$AD$7,"") ->  | AY15: =IF(AI16<$AI$9,$AG$7,"") ->  | AZ15: =IF(AL16<$AL$9,$AJ$7,"") -> 
E16: مجموع الفصلين | F16: 29 | G16: 38 | H16: 67 | I16: 80 | J16: 85 | K16: 165 | L16: 67 | M16: 61 | N16: 128 | O16: 32 | P16: 20 | Q16: 52 | R16: 67 | S16: 47 | T16: 114 | U16: 37 | V16: 41 | W16: 78 | X16: 52 | Y16: 39 | Z16: 91 | AA16: 51 | AB16: 42 | AC16: 93 | AD16: 26 | AE16: 22 | AF16: 48 | AG16: 35 | AH16: 34 | AI16: 69 | AJ16: 19 | AK16: 19 | AL16: 38
A17: 3 | C17: طالب 3 | E17: الفصل الاول | F17: 18 | G17: 17 | H17: 35 | I17: 37 | J17: 43 | K17: 80 | L17: 33 | M17: 32 | N17: 65 | O17: 14 | P17: 16 | Q17: 30 | R17: 38 | S17: 37 | T17: 75 | U17: 19 | V17: 20 | W17: 39 | X17: 29 | Y17: 25 | Z17: 54 | AA17: 26 | AB17: 27 | AC17: 53 | AD17: 11 | AE17: 18 | AF17: 29 | AG17: 17 | AH17: 13 | AI17: 30 | AJ17: 8 | AK17: 9 | AL17: 17 | AM17: =IF(AND(H19>=$H$9,K19>=$K$9,N19>=$N$9,Q19>=$Q$9,T19>=$T$9,W19>=$W$9,Z19>=$Z$9,AC19>=$AC$9,AF19>=$AF$9,AI19>=$AI$9,AL19>=$AL$9),SUM(H19,K19,N19,Q19,T19,W19,Z19,AC19,AF19,AI19,AL19),0) -> 1027 | AN17: =AM17/1320*100 -> 77.8030303 | AO17: =evaltion(AN17) -> جيد جدا | AP17: =IF(AM17=0,"له دور ثان في",IF(AM17>0,"ناجـــــــــــــــــــح")) -> ناجـــــــــــــــــــح
E18: الفصل الثاني | F18: 16 | G18: 19 | H18: 35 | I18: 47 | J18: 43 | K18: 90 | L18: 40 | M18: 39 | N18: 79 | O18: 18 | P18: 16 | Q18: 34 | R18: 39 | S18: 31 | T18: 70 | U18: 22 | V18: 18 | W18: 40 | X18: 25 | Y18: 23 | Z18: 48 | AA18: 20 | AB18: 22 | AC18: 42 | AD18: 11 | AE18: 18 | AF18: 29 | AG18: 19 | AH18: 15 | AI18: 34 | AJ18: 9 | AK18: 10 | AL18: 19 | AP18: =IF(H19<$H$9,$F$7,"") ->  | AQ18: =IF(K19<$K$9,$L$7,"") ->  | AR18: =IF(N19<$N$9,#REF!,"") ->  | AS18: =IF(Q19<$Q$9,$O$7,"") ->  | AT18: =IF(T19<$T$9,$R$7,"") ->  | AU18: =IF(W19<$W$9,$U$7,"") ->  | AV18: =IF(Z19<$Z$9,$X$7,"") ->  | AW18: =IF(AC19<$AC$9,$AA$7,"") ->  | AX18: =IF(AF19<$AF$9,$AD$7,"") ->  | AY18: =IF(AI19<$AI$9,$AG$7,"") ->  | AZ18: =IF(AL19<$AL$9,$AJ$7,"") -> 
E19: مجموع الفصلين | F19: 34 | G19: 36 | H19: 70 | I19: 84 | J19: 86 | K19: 170 | L19: 73 | M19: 71 | N19: 144 | O19: 32 | P19: 32 | Q19: 64 | R19: 77 | S19: 68 | T19: 145 | U19: 41 | V19: 38 | W19: 79 | X19: 54 | Y19: 48 | Z19: 102 | AA19: 46 | AB19: 49 | AC19: 95 | AD19: 22 | AE19: 36 | AF19: 58 | AG19: 36 | AH19: 28 | AI19: 64 | AJ19: 17 | AK19: 19 | AL19: 36
A20: 4 | C20: طالب 4 | E20: الفصل الاول | F20: 16 | G20: 15 | H20: 31 | I20: 33 | J20: 37 | K20: 70 | L20: 30 | M20: 40 | N20: 70 | O20: 13 | P20: 7 | Q20: 20 | R20: 32 | S20: 27 | T20: 59 | U20: 13 | V20: 13 | W20: 26 | X20: 27 | Y20: 21 | Z20: 48 | AA20: 26 | AB20: 26 | AC20: 52 | AD20: 12 | AE20: 15 | AF20: 27 | AG20: 18 | AH20: 15 | AI20: 33 | AJ20: 9 | AK20: 9 | AL20: 18 | AM20: =IF(AND(H22>=$H$9,K22>=$K$9,N22>=$N$9,Q22>=$Q$9,T22>=$T$9,W22>=$W$9,Z22>=$Z$9,AC22>=$AC$9,AF22>=$AF$9,AI22>=$AI$9,AL22>=$AL$9),SUM(H22,K22,N22,Q22,T22,W22,Z22,AC22,AF22,AI22,AL22),0) -> 991 | AN20: =AM20/1320*100 -> 75.07575758 | AO20: =evaltion(AN20) -> جيد جدا | AP20: =IF(AM20=0,"له دور ثان في",IF(AM20>0,"ناجـــــــــــــــــــح")) -> ناجـــــــــــــــــــح
E21: الفصل الثاني | F21: 20 | G21: 20 | H21: 40 | I21: 34 | J21: 41 | K21: 75 | L21: 30 | M21: 40 | N21: 70 | O21: 19 | P21: 15 | Q21: 34 | R21: 49 | S21: 33 | T21: 82 | U21: 28 | V21: 28 | W21: 56 | X21: 23 | Y21: 28 | Z21: 51 | AA21: 29 | AB21: 26 | AC21: 55 | AD21: 12 | AE21: 15 | AF21: 27 | AG21: 16 | AH21: 14 | AI21: 30 | AJ21: 9 | AK21: 8 | AL21: 17 | AP21: =IF(H22<$H$9,$F$7,"") ->  | AQ21: =IF(K22<$K$9,$L$7,"") ->  | AR21: =IF(N22<$N$9,#REF!,"") ->  | AS21: =IF(Q22<$Q$9,$O$7,"") ->  | AT21: =IF(T22<$T$9,$R$7,"") ->  | AU21: =IF(W22<$W$9,$U$7,"") ->  | AV21: =IF(Z22<$Z$9,$X$7,"") ->  | AW21: =IF(AC22<$AC$9,$AA$7,"") ->  | AX21: =IF(AF22<$AF$9,$AD$7,"") ->  | AY21: =IF(AI22<$AI$9,$AG$7,"") ->  | AZ21: =IF(AL22<$AL$9,$AJ$7,"") -> 
E22: مجموع الفصلين | F22: 36 | G22: 35 | H22: 71 | I22: 67 | J22: 78 | K22: 145 | L22: 60 | M22: 80 | N22: 140 | O22: 32 | P22: 22 | Q22: 54 | R22: 81 | S22: 60 | T22: 141 | U22: 41 | V22: 41 | W22: 82 | X22: 50 | Y22: 49 | Z22: 99 | AA22: 55 | AB22: 52 | AC22: 107 | AD22: 24 | AE22: 30 | AF22: 54 | AG22: 34 | AH22: 29 | AI22: 63 | AJ22: 18 | AK22: 17 | AL22: 35
A23: 5 | C23: طالب 5 | E23: الفصل الاول | F23: 16 | G23: 16 | H23: 32 | I23: 36 | J23: 38 | K23: 74 | L23: 32 | M23: 34 | N23: 66 | O23: 16 | P23: 9 | Q23: 25 | R23: 33 | S23: 23 | T23: 56 | U23: 21 | V23: 16 | W23: 37 | X23: 26 | Y23: 20 | Z23: 46 | AA23: 16 | AB23: 22 | AC23: 38 | AD23: 16 | AE23: 16 | AF23: 32 | AG23: 15 | AH23: 12 | AI23: 27 | AJ23: 9 | AK23: 9 | AL23: 18 | AM23: =IF(AND(H25>=$H$9,K25>=$K$9,N25>=$N$9,Q25>=$Q$9,T25>=$T$9,W25>=$W$9,Z25>=$Z$9,AC25>=$AC$9,AF25>=$AF$9,AI25>=$AI$9,AL25>=$AL$9),SUM(H25,K25,N25,Q25,T25,W25,Z25,AC25,AF25,AI25,AL25),0) -> 0 | AN23: =AM23/1320*100 -> 0 | AO23: =evaltion(AN23) -> راسب | AP23: =IF(AM23=0,"له دور ثان في",IF(AM23>0,"ناجـــــــــــــــــــح")) -> له دور ثان في
E24: الفصل الثاني | F24: 10 | G24: 6 | H24: 16 | I24: 24 | J24: 29 | K24: 53 | L24: 32 | M24: 34 | N24: 66 | O24: 8 | P24: 9 | Q24: 17 | R24: 34 | S24: 5 | T24: 39 | U24: 8 | V24: 6 | W24: 14 | X24: 16 | Y24: 4 | Z24: 20 | AA24: 15 | AB24: 14 | AC24: 29 | AD24: 16 | AE24: 16 | AF24: 32 | AG24: 7 | AH24: 7 | AI24: 14 | AJ24: 3 | AK24: 4 | AL24: 7 | AP24: =IF(H25<$H$9,$F$7,"") ->  | AQ24: =IF(K25<$K$9,$L$7,"") ->  | AR24: =IF(N25<$N$9,#REF!,"") ->  | AS24: =IF(Q25<$Q$9,$O$7,"") ->  | AT24: =IF(T25<$T$9,$R$7,"") -> الرياضيات | AU24: =IF(W25<$W$9,$U$7,"") -> الفيزياء | AV24: =IF(Z25<$Z$9,$X$7,"") ->  | AW24: =IF(AC25<$AC$9,$AA$7,"") ->  | AX24: =IF(AF25<$AF$9,$AD$7,"") ->  | AY24: =IF(AI25<$AI$9,$AG$7,"") ->  | AZ24: =IF(AL25<$AL$9,$AJ$7,"") -> علم الاجتماع
E25: مجموع الفصلين | F25: 26 | G25: 22 | H25: 48 | I25: 60 | J25: 67 | K25: 127 | L25: 64 | M25: 68 | N25: 132 | O25: 24 | P25: 18 | Q25: 42 | R25: 67 | S25: 28 | T25: 95 | U25: 29 | V25: 22 | W25: 51 | X25: 42 | Y25: 24 | Z25: 66 | AA25: 31 | AB25: 36 | AC25: 67 | AD25: 32 | AE25: 32 | AF25: 64 | AG25: 22 | AH25: 19 | AI25: 41 | AJ25: 12 | AK25: 13 | AL25: 0
A26: 6 | C26: طالب 6 | E26: الفصل الاول | F26: 10 | G26: 11 | H26: 21 | I26: 37 | J26: 32 | K26: 69 | L26: 23 | M26: 32 | N26: 55 | O26: 14 | P26: 16 | Q26: 30 | R26: 20 | S26: 5 | T26: 25 | U26: 19 | V26: 15 | W26: 34 | X26: 14 | Y26: 14 | Z26: 28 | AA26: 16 | AB26: 9 | AC26: 25 | AD26: 13 | AE26: 8 | AF26: 21 | AG26: 12 | AH26: 8 | AI26: 20 | AJ26: 8 | AK26: 9 | AL26: 17 | AM26: =IF(AND(H28>=$H$9,K28>=$K$9,N28>=$N$9,Q28>=$Q$9,T28>=$T$9,W28>=$W$9,Z28>=$Z$9,AC28>=$AC$9,AF28>=$AF$9,AI28>=$AI$9,AL28>=$AL$9),SUM(H28,K28,N28,Q28,T28,W28,Z28,AC28,AF28,AI28,AL28),0) -> 916 | AN26: =AM26/1320*100 -> 69.39393939 | AO26: =evaltion(AN26) -> جيد فقط | AP26: =IF(AM26=0,"له دور ثان في",IF(AM26>0,"ناجـــــــــــــــــــح")) -> ناجـــــــــــــــــــح
E27: الفصل الثاني | F27: 20 | G27: 18 | H27: 38 | I27: 47 | J27: 45 | K27: 92 | L27: 44 | M27: 38 | N27: 82 | O27: 18 | P27: 13 | Q27: 31 | R27: 45 | S27: 47 | T27: 92 | U27: 30 | V27: 25 | W27: 55 | X27: 30 | Y27: 27 | Z27: 57 | AA27: 27 | AB27: 24 | AC27: 51 | AD27: 13 | AE27: 8 | AF27: 21 | AG27: 18 | AH27: 14 | AI27: 32 | AJ27: 10 | AK27: 10 | AL27: 20 | AP27: =IF(H28<$H$9,$F$7,"") ->  | AQ27: =IF(K28<$K$9,$L$7,"") ->  | AR27: =IF(N28<$N$9,#REF!,"") ->  | AS27: =IF(Q28<$Q$9,$O$7,"") ->  | AT27: =IF(T28<$T$9,$R$7,"") ->  | AU27: =IF(W28<$W$9,$U$7,"") ->  | AV27: =IF(Z28<$Z$9,$X$7,"") ->  | AW27: =IF(AC28<$AC$9,$AA$7,"") ->  | AX27: =IF(AF28<$AF$9,$AD$7,"") ->  | AY27: =IF(AI28<$AI$9,$AG$7,"") ->  | AZ27: =IF(AL28<$AL$9,$AJ$7,"") -> 
E28: مجموع الفصلين | F28: 30 | G28: 29 | H28: 59 | I28: 84 | J28: 77 | K28: 161 | L28: 67 | M28: 70 | N28: 137 | O28: 32 | P28: 29 | Q28: 61 | R28: 65 | S28: 52 | T28: 117 | U28: 49 | V28: 40 | W28: 89 | X28: 44 | Y28: 41 | Z28: 85 | AA28: 43 | AB28: 33 | AC28: 76 | AD28: 26 | AE28: 16 | AF28: 42 | AG28: 30 | AH28: 22 | AI28: 52 | AJ28: 18 | AK28: 19 | AL28: 37
A29: 7 | C29: طالب 7 | E29: الفصل الاول | F29: 19 | G29: 19 | H29: 38 | I29: 45 | J29: 46 | K29: 91 | L29: 27 | M29: 25 | N29: 52 | O29: 16 | P29: 10 | Q29: 26 | R29: 43 | S29: 27 | T29: 70 | U29: 20 | V29: 22 | W29: 42 | X29: 30 | Y29: 23 | Z29: 53 | AA29: 29 | AB29: 18 | AC29: 47 | AD29: 14 | AE29: 17 | AF29: 31 | AG29: 19 | AH29: 20 | AI29: 39 | AJ29: 9 | AK29: 9 | AL29: 18 | AM29: =IF(AND(H31>=$H$9,K31>=$K$9,N31>=$N$9,Q31>=$Q$9,T31>=$T$9,W31>=$W$9,Z31>=$Z$9,AC31>=$AC$9,AF31>=$AF$9,AI31>=$AI$9,AL31>=$AL$9),SUM(H31,K31,N31,Q31,T31,W31,Z31,AC31,AF31,AI31,AL31),0) -> 936 | AN29: =AM29/1320*100 -> 70.90909091 | AO29: =evaltion(AN29) -> جيد فقط | AP29: =IF(AM29=0,"له دور ثان في",IF(AM29>0,"ناجـــــــــــــــــــح")) -> ناجـــــــــــــــــــح
E30: الفصل الثاني | F30: 10 | G30: 19 | H30: 29 | I30: 35 | J30: 39 | K30: 74 | L30: 26 | M30: 29 | N30: 55 | O30: 16 | P30: 10 | Q30: 26 | R30: 24 | S30: 20 | T30: 44 | U30: 17 | V30: 19 | W30: 36 | X30: 22 | Y30: 16 | Z30: 38 | AA30: 22 | AB30: 24 | AC30: 46 | AD30: 14 | AE30: 17 | AF30: 31 | AG30: 16 | AH30: 14 | AI30: 30 | AJ30: 10 | AK30: 10 | AL30: 20 | AP30: =IF(H31<$H$9,$F$7,"") ->  | AQ30: =IF(K31<$K$9,$L$7,"") ->  | AR30: =IF(N31<$N$9,#REF!,"") ->  | AS30: =IF(Q31<$Q$9,$O$7,"") ->  | AT30: =IF(T31<$T$9,$R$7,"") ->  | AU30: =IF(W31<$W$9,$U$7,"") ->  | AV30: =IF(Z31<$Z$9,$X$7,"") ->  | AW30: =IF(AC31<$AC$9,$AA$7,"") ->  | AX30: =IF(AF31<$AF$9,$AD$7,"") ->  | AY30: =IF(AI31<$AI$9,$AG$7,"") ->  | AZ30: =IF(AL31<$AL$9,$AJ$7,"") -> 
E31: مجموع الفصلين | F31: 29 | G31: 38 | H31: 67 | I31: 80 | J31: 85 | K31: 165 | L31: 53 | M31: 54 | N31: 107 | O31: 32 | P31: 20 | Q31: 52 | R31: 67 | S31: 47 | T31: 114 | U31: 37 | V31: 41 | W31: 78 | X31: 52 | Y31: 39 | Z31: 91 | AA31: 51 | AB31: 42 | AC31: 93 | AD31: 28 | AE31: 34 | AF31: 62 | AG31: 35 | AH31: 34 | AI31: 69 | AJ31: 19 | AK31: 19 | AL31: 38
A32: 8 | C32: طالب 8 | E32: الفصل الاول | F32: 16 | G32: 19 | H32: 35 | I32: 47 | J32: 43 | K32: 90 | L32: 40 | M32: 39 | N32: 79 | O32: 18 | P32: 16 | Q32: 34 | R32: 39 | S32: 31 | T32: 70 | U32: 22 | V32: 18 | W32: 40 | X32: 25 | Y32: 23 | Z32: 48 | AA32: 20 | AB32: 22 | AC32: 42 | AD32: 16 | AE32: 15 | AF32: 31 | AG32: 19 | AH32: 15 | AI32: 34 | AJ32: 9 | AK32: 10 | AL32: 19 | AM32: =IF(AND(H34>=$H$9,K34>=$K$9,N34>=$N$9,Q34>=$Q$9,T34>=$T$9,W34>=$W$9,Z34>=$Z$9,AC34>=$AC$9,AF34>=$AF$9,AI34>=$AI$9,AL34>=$AL$9),SUM(H34,K34,N34,Q34,T34,W34,Z34,AC34,AF34,AI34,AL34),0) -> 1045 | AN32: =AM32/1320*100 -> 79.16666667 | AO32: =evaltion(AN32) -> جيد جدا | AP32: =IF(AM32=0,"له دور ثان في",IF(AM32>0,"ناجـــــــــــــــــــح")) -> ناجـــــــــــــــــــح
E33: الفصل الثاني | F33: 18 | G33: 17 | H33: 35 | I33: 37 | J33: 43 | K33: 80 | L33: 40 | M33: 39 | N33: 79 | O33: 14 | P33: 16 | Q33: 30 | R33: 38 | S33: 37 | T33: 75 | U33: 19 | V33: 20 | W33: 39 | X33: 29 | Y33: 25 | Z33: 54 | AA33: 26 | AB33: 27 | AC33: 53 | AD33: 16 | AE33: 15 | AF33: 31 | AG33: 17 | AH33: 13 | AI33: 30 | AJ33: 8 | AK33: 9 | AL33: 17 | AP33: =IF(H34<$H$9,$F$7,"") ->  | AQ33: =IF(K34<$K$9,$L$7,"") ->  | AR33: =IF(N34<$N$9,#REF!,"") ->  | AS33: =IF(Q34<$Q$9,$O$7,"") ->  | AT33: =IF(T34<$T$9,$R$7,"") ->  | AU33: =IF(W34<$W$9,$U$7,"") ->  | AV33: =IF(Z34<$Z$9,$X$7,"") ->  | AW33: =IF(AC34<$AC$9,$AA$7,"") ->  | AX33: =IF(AF34<$AF$9,$AD$7,"") ->  | AY33: =IF(AI34<$AI$9,$AG$7,"") ->  | AZ33: =IF(AL34<$AL$9,$AJ$7,"") -> 
E34: مجموع الفصلين | F34: 34 | G34: 36 | H34: 70 | I34: 84 | J34: 86 | K34: 170 | L34: 80 | M34: 78 | N34: 158 | O34: 32 | P34: 32 | Q34: 64 | R34: 77 | S34: 68 | T34: 145 | U34: 41 | V34: 38 | W34: 79 | X34: 54 | Y34: 48 | Z34: 102 | AA34: 46 | AB34: 49 | AC34: 95 | AD34: 32 | AE34: 30 | AF34: 62 | AG34: 36 | AH34: 28 | AI34: 64 | AJ34: 17 | AK34: 19 | AL34: 36
A35: 9 | C35: طالب 9 | E35: الفصل الاول | F35: 20 | G35: 20 | H35: 40 | I35: 34 | J35: 41 | K35: 75 | L35: 44 | M35: 38 | N35: 82 | O35: 19 | P35: 15 | Q35: 34 | R35: 49 | S35: 33 | T35: 82 | U35: 28 | V35: 28 | W35: 56 | X35: 23 | Y35: 28 | Z35: 51 | AA35: 29 | AB35: 26 | AC35: 55 | AD35: 14 | AE35: 13 | AF35: 27 | AG35: 16 | AH35: 14 | AI35: 30 | AJ35: 9 | AK35: 8 | AL35: 17 | AM35: =IF(AND(H37>=$H$9,K37>=$K$9,N37>=$N$9,Q37>=$Q$9,T37>=$T$9,W37>=$W$9,Z37>=$Z$9,AC37>=$AC$9,AF37>=$AF$9,AI37>=$AI$9,AL37>=$AL$9),SUM(H37,K37,N37,Q37,T37,W37,Z37,AC37,AF37,AI37,AL37),0) -> 1015 | AN35: =AM35/1320*100 -> 76.89393939 | AO35: =evaltion(AN35) -> جيد جدا | AP35: =IF(AM35=0,"له دور ثان في",IF(AM35>0,"ناجـــــــــــــــــــح")) -> ناجـــــــــــــــــــح
E36: الفصل الثاني | F36: 16 | G36: 15 | H36: 31 | I36: 33 | J36: 37 | K36: 70 | L36: 44 | M36: 38 | N36: 82 | O36: 13 | P36: 7 | Q36: 20 | R36: 32 | S36: 27 | T36: 59 | U36: 13 | V36: 13 | W36: 26 | X36: 27 | Y36: 21 | Z36: 48 | AA36: 26 | AB36: 26 | AC36: 52 | AD36: 14 | AE36: 13 | AF36: 27 | AG36: 18 | AH36: 15 | AI36: 33 | AJ36: 9 | AK36: 9 | AL36: 18 | AP36: =IF(H37<$H$9,$F$7,"") ->  | AQ36: =IF(K37<$K$9,$L$7,"") ->  | AR36: =IF(N37<$N$9,#REF!,"") ->  | AS36: =IF(Q37<$Q$9,$O$7,"") ->  | AT36: =IF(T37<$T$9,$R$7,"") ->  | AU36: =IF(W37<$W$9,$U$7,"") ->  | AV36: =IF(Z37<$Z$9,$X$7,"") ->  | AW36: =IF(AC37<$AC$9,$AA$7,"") ->  | AX36: =IF(AF37<$AF$9,$AD$7,"") ->  | AY36: =IF(AI37<$AI$9,$AG$7,"") ->  | AZ36: =IF(AL37<$AL$9,$AJ$7,"") -> 
E37: مجموع الفصلين | F37: 36 | G37: 35 | H37: 71 | I37: 67 | J37: 78 | K37: 145 | L37: 88 | M37: 76 | N37: 164 | O37: 32 | P37: 22 | Q37: 54 | R37: 81 | S37: 60 | T37: 141 | U37: 41 | V37: 41 | W37: 82 | X37: 50 | Y37: 49 | Z37: 99 | AA37: 55 | AB37: 52 | AC37: 107 | AD37: 28 | AE37: 26 | AF37: 54 | AG37: 34 | AH37: 29 | AI37: 63 | AJ37: 18 | AK37: 17 | AL37: 35
A38: 10 | C38: طالب 10 | E38: الفصل الاول | F38: 10 | G38: 6 | H38: 16 | I38: 24 | J38: 29 | K38: 53 | L38: 26 | M38: 29 | N38: 55 | O38: 8 | P38: 9 | Q38: 17 | R38: 34 | S38: 5 | T38: 39 | U38: 8 | V38: 6 | W38: 14 | X38: 16 | Y38: 4 | Z38: 20 | AA38: 15 | AB38: 14 | AC38: 29 | AD38: 5 | AE38: 7 | AF38: 12 | AG38: 7 | AH38: 7 | AI38: 14 | AJ38: 3 | AK38: 4 | AL38: 7 | AM38: =IF(AND(H40>=$H$9,K40>=$K$9,N40>=$N$9,Q40>=$Q$9,T40>=$T$9,W40>=$W$9,Z40>=$Z$9,AC40>=$AC$9,AF40>=$AF$9,AI40>=$AI$9,AL40>=$AL$9),SUM(H40,K40,N40,Q40,T40,W40,Z40,AC40,AF40,AI40,AL40),0) -> 0 | AN38: =AM38/1320*100 -> 0 | AO38: =evaltion(AN38) -> راسب | AP38: =IF(AM38=0,"له دور ثان في",IF(AM38>0,"ناجـــــــــــــــــــح")) -> له دور ثان في
E39: الفصل الثاني | F39: 16 | G39: 16 | H39: 32 | I39: 36 | J39: 38 | K39: 74 | L39: 26 | M39: 29 | N39: 55 | O39: 16 | P39: 9 | Q39: 25 | R39: 33 | S39: 23 | T39: 56 | U39: 21 | V39: 16 | W39: 37 | X39: 26 | Y39: 20 | Z39: 46 | AA39: 16 | AB39: 22 | AC39: 38 | AD39: 5 | AE39: 7 | AF39: 12 | AG39: 15 | AH39: 12 | AI39: 27 | AJ39: 9 | AK39: 9 | AL39: 18 | AP39: =IF(H40<$H$9,$F$7,"") ->  | AQ39: =IF(K40<$K$9,$L$7,"") ->  | AR39: =IF(N40<$N$9,#REF!,"") ->  | AS39: =IF(Q40<$Q$9,$O$7,"") ->  | AT39: =IF(T40<$T$9,$R$7,"") -> الرياضيات | AU39: =IF(W40<$W$9,$U$7,"") -> الفيزياء | AV39: =IF(Z40<$Z$9,$X$7,"") ->  | AW39: =IF(AC40<$AC$9,$AA$7,"") ->  | AX39: =IF(AF40<$AF$9,$AD$7,"") -> التاريخ | AY39: =IF(AI40<$AI$9,$AG$7,"") ->  | AZ39: =IF(AL40<$AL$9,$AJ$7,"") -> علم الاجتماع
E40: مجموع الفصلين | F40: 26 | G40: 22 | H40: 48 | I40: 60 | J40: 67 | K40: 127 | L40: 52 | M40: 58 | N40: 110 | O40: 24 | P40: 18 | Q40: 42 | R40: 67 | S40: 28 | T40: 95 | U40: 29 | V40: 22 | W40: 51 | X40: 42 | Y40: 24 | Z40: 66 | AA40: 31 | AB40: 36 | AC40: 67 | AD40: 10 | AE40: 14 | AF40: 0 | AG40: 22 | AH40: 19 | AI40: 41 | AJ40: 12 | AK40: 13 | AL40: 0
E41: الفصل الاول | AM41: =IF(AND(H43>=$H$9,K43>=$K$9,N43>=$N$9,Q43>=$Q$9,T43>=$T$9,W43>=$W$9,Z43>=$Z$9,AC43>=$AC$9,AF43>=$AF$9,AI43>=$AI$9,AL43>=$AL$9),SUM(H43,K43,N43,Q43,T43,W43,Z43,AC43,AF43,AI43,AL43),0) -> 0 | AN41: =AM41/1320*100 -> 0 | AO41: =evaltion(AN41) -> راسب | AP41: =IF(AM41=0,"له دور ثان في",IF(AM41>0,"ناجـــــــــــــــــــح")) -> له دور ثان في
E42: الفصل الثاني | AP42: =IF(H43<$H$9,$F$7,"") -> التربية الاسلامية | AQ42: =IF(K43<$K$9,$L$7,"") -> اللغة الانجليزية | AR42: =IF(N43<$N$9,#REF!,"") ->  | AS42: =IF(Q43<$Q$9,$O$7,"") -> تقنية المعلومات | AT42: =IF(T43<$T$9,$R$7,"") -> الرياضيات | AU42: =IF(W43<$W$9,$U$7,"") -> الفيزياء | AV42: =IF(Z43<$Z$9,$X$7,"") -> الكيمياء | AW42: =IF(AC43<$AC$9,$AA$7,"") -> الاحياء | AX42: =IF(AF43<$AF$9,$AD$7,"") -> التاريخ | AY42: =IF(AI43<$AI$9,$AG$7,"") -> الجغرافيا | AZ42: =IF(AL43<$AL$9,$AJ$7,"") -> علم الاجتماع
E43: مجموع الفصلين
E44: الفصل الاول | AM44: =IF(AND(H46>=$H$9,K46>=$K$9,N46>=$N$9,Q46>=$Q$9,T46>=$T$9,W46>=$W$9,Z46>=$Z$9,AC46>=$AC$9,AF46>=$AF$9,AI46>=$AI$9,AL46>=$AL$9),SUM(H46,K46,N46,Q46,T46,W46,Z46,AC46,AF46,AI46,AL46),0) -> 0 | AN44: =AM44/1320*100 -> 0 | AO44: =evaltion(AN44) -> راسب | AP44: =IF(AM44=0,"له دور ثان في",IF(AM44>0,"ناجـــــــــــــــــــح")) -> له دور ثان في
E45: الفصل الثاني | AP45: =IF(H46<$H$9,$F$7,"") -> التربية الاسلامية | AQ45: =IF(K46<$K$9,$L$7,"") -> اللغة الانجليزية | AR45: =IF(N46<$N$9,#REF!,"") ->  | AS45: =IF(Q46<$Q$9,$O$7,"") -> تقنية المعلومات | AT45: =IF(T46<$T$9,$R$7,"") -> الرياضيات | AU45: =IF(W46<$W$9,$U$7,"") -> الفيزياء | AV45: =IF(Z46<$Z$9,$X$7,"") -> الكيمياء | AW45: =IF(AC46<$AC$9,$AA$7,"") -> الاحياء | AX45: =IF(AF46<$AF$9,$AD$7,"") -> التاريخ | AY45: =IF(AI46<$AI$9,$AG$7,"") -> الجغرافيا | AZ45: =IF(AL46<$AL$9,$AJ$7,"") -> علم الاجتماع
E46: مجموع الفصلين
E47: الفصل الاول | AM47: =IF(AND(H49>=$H$9,K49>=$K$9,N49>=$N$9,Q49>=$Q$9,T49>=$T$9,W49>=$W$9,Z49>=$Z$9,AC49>=$AC$9,AF49>=$AF$9,AI49>=$AI$9,AL49>=$AL$9),SUM(H49,K49,N49,Q49,T49,W49,Z49,AC49,AF49,AI49,AL49),0) -> 0 | AN47: =AM47/1320*100 -> 0 | AO47: =evaltion(AN47) -> راسب | AP47: =IF(AM47=0,"له دور ثان في",IF(AM47>0,"ناجـــــــــــــــــــح")) -> له دور ثان في
E48: الفصل الثاني | AP48: =IF(H49<$H$9,$F$7,"") -> التربية الاسلامية | AQ48: =IF(K49<$K$9,$L$7,"") -> اللغة الانجليزية | AR48: =IF(N49<$N$9,#REF!,"") ->  | AS48: =IF(Q49<$Q$9,$O$7,"") -> تقنية المعلومات | AT48: =IF(T49<$T$9,$R$7,"") -> الرياضيات | AU48: =IF(W49<$W$9,$U$7,"") -> الفيزياء | AV48: =IF(Z49<$Z$9,$X$7,"") -> الكيمياء | AW48: =IF(AC49<$AC$9,$AA$7,"") -> الاحياء | AX48: =IF(AF49<$AF$9,$AD$7,"") -> التاريخ | AY48: =IF(AI49<$AI$9,$AG$7,"") -> الجغرافيا | AZ48: =IF(AL49<$AL$9,$AJ$7,"") -> علم الاجتماع
E49: مجموع الفصلين
E50: الفصل الاول | AM50: =IF(AND(H52>=$H$9,K52>=$K$9,N52>=$N$9,Q52>=$Q$9,T52>=$T$9,W52>=$W$9,Z52>=$Z$9,AC52>=$AC$9,AF52>=$AF$9,AI52>=$AI$9,AL52>=$AL$9),SUM(H52,K52,N52,Q52,T52,W52,Z52,AC52,AF52,AI52,AL52),0) -> 0 | AN50: =AM50/1320*100 -> 0 | AO50: =evaltion(AN50) -> راسب | AP50: =IF(AM50=0,"له دور ثان في",IF(AM50>0,"ناجـــــــــــــــــــح")) -> له دور ثان في
E51: الفصل الثاني | AP51: =IF(H52<$H$9,$F$7,"") -> التربية الاسلامية | AQ51: =IF(K52<$K$9,$L$7,"") -> اللغة الانجليزية | AR51: =IF(N52<$N$9,#REF!,"") ->  | AS51: =IF(Q52<$Q$9,$O$7,"") -> تقنية المعلومات | AT51: =IF(T52<$T$9,$R$7,"") -> الرياضيات | AU51: =IF(W52<$W$9,$U$7,"") -> الفيزياء | AV51: =IF(Z52<$Z$9,$X$7,"") -> الكيمياء | AW51: =IF(AC52<$AC$9,$AA$7,"") -> الاحياء | AX51: =IF(AF52<$AF$9,$AD$7,"") -> التاريخ | AY51: =IF(AI52<$AI$9,$AG$7,"") -> الجغرافيا | AZ51: =IF(AL52<$AL$9,$AJ$7,"") -> علم الاجتماع
E52: مجموع الفصلين
E53: الفصل الاول | AM53: =IF(AND(H55>=$H$9,K55>=$K$9,N55>=$N$9,Q55>=$Q$9,T55>=$T$9,W55>=$W$9,Z55>=$Z$9,AC55>=$AC$9,AF55>=$AF$9,AI55>=$AI$9,AL55>=$AL$9),SUM(H55,K55,N55,Q55,T55,W55,Z55,AC55,AF55,AI55,AL55),0) -> 0 | AN53: =AM53/1320*100 -> 0 | AO53: =evaltion(AN53) -> راسب | AP53: =IF(AM53=0,"له دور ثان في",IF(AM53>0,"ناجـــــــــــــــــــح")) -> له دور ثان في
E54: الفصل الثاني | AP54: =IF(H55<$H$9,$F$7,"") -> التربية الاسلامية | AQ54: =IF(K55<$K$9,$L$7,"") -> اللغة الانجليزية | AR54: =IF(N55<$N$9,#REF!,"") ->  | AS54: =IF(Q55<$Q$9,$O$7,"") -> تقنية المعلومات | AT54: =IF(T55<$T$9,$R$7,"") -> الرياضيات | AU54: =IF(W55<$W$9,$U$7,"") -> الفيزياء | AV54: =IF(Z55<$Z$9,$X$7,"") -> الكيمياء | AW54: =IF(AC55<$AC$9,$AA$7,"") -> الاحياء | AX54: =IF(AF55<$AF$9,$AD$7,"") -> التاريخ | AY54: =IF(AI55<$AI$9,$AG$7,"") -> الجغرافيا | AZ54: =IF(AL55<$AL$9,$AJ$7,"") -> علم الاجتماع
E55: مجموع الفصلين
E56: الفصل الاول | AM56: =IF(AND(H58>=$H$9,K58>=$K$9,N58>=$N$9,Q58>=$Q$9,T58>=$T$9,W58>=$W$9,Z58>=$Z$9,AC58>=$AC$9,AF58>=$AF$9,AI58>=$AI$9,AL58>=$AL$9),SUM(H58,K58,N58,Q58,T58,W58,Z58,AC58,AF58,AI58,AL58),0) -> 0 | AN56: =AM56/1320*100 -> 0 | AO56: =evaltion(AN56) -> راسب | AP56: =IF(AM56=0,"له دور ثان في",IF(AM56>0,"ناجـــــــــــــــــــح")) -> له دور ثان في
E57: الفصل الثاني | AP57: =IF(H58<$H$9,$F$7,"") -> التربية الاسلامية | AQ57: =IF(K58<$K$9,$L$7,"") -> اللغة الانجليزية | AR57: =IF(N58<$N$9,#REF!,"") ->  | AS57: =IF(Q58<$Q$9,$O$7,"") -> تقنية المعلومات | AT57: =IF(T58<$T$9,$R$7,"") -> الرياضيات | AU57: =IF(W58<$W$9,$U$7,"") -> الفيزياء | AV57: =IF(Z58<$Z$9,$X$7,"") -> الكيمياء | AW57: =IF(AC58<$AC$9,$AA$7,"") -> الاحياء | AX57: =IF(AF58<$AF$9,$AD$7,"") -> التاريخ | AY57: =IF(AI58<$AI$9,$AG$7,"") -> الجغرافيا | AZ57: =IF(AL58<$AL$9,$AJ$7,"") -> علم الاجتماع
E58: مجموع الفصلين
E59: الفصل الاول | AM59: =IF(AND(H61>=$H$9,K61>=$K$9,N61>=$N$9,Q61>=$Q$9,T61>=$T$9,W61>=$W$9,Z61>=$Z$9,AC61>=$AC$9,AF61>=$AF$9,AI61>=$AI$9,AL61>=$AL$9),SUM(H61,K61,N61,Q61,T61,W61,Z61,AC61,AF61,AI61,AL61),0) -> 0 | AN59: =AM59/1320*100 -> 0 | AO59: =evaltion(AN59) -> راسب | AP59: =IF(AM59=0,"له دور ثان في",IF(AM59>0,"ناجـــــــــــــــــــح")) -> له دور ثان في
E60: الفصل الثاني | AP60: =IF(H61<$H$9,$F$7,"") -> التربية الاسلامية | AQ60: =IF(K61<$K$9,$L$7,"") -> اللغة الانجليزية | AR60: =IF(N61<$N$9,#REF!,"") ->  | AS60: =IF(Q61<$Q$9,$O$7,"") -> تقنية المعلومات | AT60: =IF(T61<$T$9,$R$7,"") -> الرياضيات | AU60: =IF(W61<$W$9,$U$7,"") -> الفيزياء | AV60: =IF(Z61<$Z$9,$X$7,"") -> الكيمياء | AW60: =IF(AC61<$AC$9,$AA$7,"") -> الاحياء | AX60: =IF(AF61<$AF$9,$AD$7,"") -> التاريخ | AY60: =IF(AI61<$AI$9,$AG$7,"") -> الجغرافيا | AZ60: =IF(AL61<$AL$9,$AJ$7,"") -> علم الاجتماع
E61: مجموع الفصلين
E62: الفصل الاول | AM62: =IF(AND(H64>=$H$9,K64>=$K$9,N64>=$N$9,Q64>=$Q$9,T64>=$T$9,W64>=$W$9,Z64>=$Z$9,AC64>=$AC$9,AF64>=$AF$9,AI64>=$AI$9,AL64>=$AL$9),SUM(H64,K64,N64,Q64,T64,W64,Z64,AC64,AF64,AI64,AL64),0) -> 0 | AN62: =AM62/1320*100 -> 0 | AO62: =evaltion(AN62) -> راسب | AP62: =IF(AM62=0,"له دور ثان في",IF(AM62>0,"ناجـــــــــــــــــــح")) -> له دور ثان في
E63: الفصل الثاني | AP63: =IF(H64<$H$9,$F$7,"") -> التربية الاسلامية | AQ63: =IF(K64<$K$9,$L$7,"") -> اللغة الانجليزية | AR63: =IF(N64<$N$9,#REF!,"") ->  | AS63: =IF(Q64<$Q$9,$O$7,"") -> تقنية المعلومات | AT63: =IF(T64<$T$9,$R$7,"") -> الرياضيات | AU63: =IF(W64<$W$9,$U$7,"") -> الفيزياء | AV63: =IF(Z64<$Z$9,$X$7,"") -> الكيمياء | AW63: =IF(AC64<$AC$9,$AA$7,"") -> الاحياء | AX63: =IF(AF64<$AF$9,$AD$7,"") -> التاريخ | AY63: =IF(AI64<$AI$9,$AG$7,"") -> الجغرافيا | AZ63: =IF(AL64<$AL$9,$AJ$7,"") -> علم الاجتماع
E64: مجموع الفصلين
E65: الفصل الاول | AM65: =IF(AND(H67>=$H$9,K67>=$K$9,N67>=$N$9,Q67>=$Q$9,T67>=$T$9,W67>=$W$9,Z67>=$Z$9,AC67>=$AC$9,AF67>=$AF$9,AI67>=$AI$9,AL67>=$AL$9),SUM(H67,K67,N67,Q67,T67,W67,Z67,AC67,AF67,AI67,AL67),0) -> 0 | AN65: =AM65/1320*100 -> 0 | AO65: =evaltion(AN65) -> راسب | AP65: =IF(AM65=0,"له دور ثان في",IF(AM65>0,"ناجـــــــــــــــــــح")) -> له دور ثان في
E66: الفصل الثاني | AP66: =IF(H67<$H$9,$F$7,"") -> التربية الاسلامية | AQ66: =IF(K67<$K$9,$L$7,"") -> اللغة الانجليزية | AR66: =IF(N67<$N$9,#REF!,"") ->  | AS66: =IF(Q67<$Q$9,$O$7,"") -> تقنية المعلومات | AT66: =IF(T67<$T$9,$R$7,"") -> الرياضيات | AU66: =IF(W67<$W$9,$U$7,"") -> الفيزياء | AV66: =IF(Z67<$Z$9,$X$7,"") -> الكيمياء | AW66: =IF(AC67<$AC$9,$AA$7,"") -> الاحياء | AX66: =IF(AF67<$AF$9,$AD$7,"") -> التاريخ | AY66: =IF(AI67<$AI$9,$AG$7,"") -> الجغرافيا | AZ66: =IF(AL67<$AL$9,$AJ$7,"") -> علم الاجتماع
E67: مجموع الفصلين
E68: الفصل الاول | AM68: =IF(AND(H70>=$H$9,K70>=$K$9,N70>=$N$9,Q70>=$Q$9,T70>=$T$9,W70>=$W$9,Z70>=$Z$9,AC70>=$AC$9,AF70>=$AF$9,AI70>=$AI$9,AL70>=$AL$9),SUM(H70,K70,N70,Q70,T70,W70,Z70,AC70,AF70,AI70,AL70),0) -> 0 | AN68: =AM68/1320*100 -> 0 | AO68: =evaltion(AN68) -> راسب | AP68: =IF(AM68=0,"له دور ثان في",IF(AM68>0,"ناجـــــــــــــــــــح")) -> له دور ثان في
E69: الفصل الثاني | AP69: =IF(H70<$H$9,$F$7,"") -> التربية الاسلامية | AQ69: =IF(K70<$K$9,$L$7,"") -> اللغة الانجليزية | AR69: =IF(N70<$N$9,#REF!,"") ->  | AS69: =IF(Q70<$Q$9,$O$7,"") -> تقنية المعلومات | AT69: =IF(T70<$T$9,$R$7,"") -> الرياضيات | AU69: =IF(W70<$W$9,$U$7,"") -> الفيزياء | AV69: =IF(Z70<$Z$9,$X$7,"") -> الكيمياء | AW69: =IF(AC70<$AC$9,$AA$7,"") -> الاحياء | AX69: =IF(AF70<$AF$9,$AD$7,"") -> التاريخ | AY69: =IF(AI70<$AI$9,$AG$7,"") -> الجغرافيا | AZ69: =IF(AL70<$AL$9,$AJ$7,"") -> علم الاجتماع
E70: مجموع الفصلين
E71: الفصل الاول | AM71: =IF(AND(H73>=$H$9,K73>=$K$9,N73>=$N$9,Q73>=$Q$9,T73>=$T$9,W73>=$W$9,Z73>=$Z$9,AC73>=$AC$9,AF73>=$AF$9,AI73>=$AI$9,AL73>=$AL$9),SUM(H73,K73,N73,Q73,T73,W73,Z73,AC73,AF73,AI73,AL73),0) -> 0 | AN71: =AM71/1320*100 -> 0 | AO71: =evaltion(AN71) -> راسب | AP71: =IF(AM71=0,"له دور ثان في",IF(AM71>0,"ناجـــــــــــــــــــح")) -> له دور ثان في
E72: الفصل الثاني | AP72: =IF(H73<$H$9,$F$7,"") -> التربية الاسلامية | AQ72: =IF(K73<$K$9,$L$7,"") -> اللغة الانجليزية | AR72: =IF(N73<$N$9,#REF!,"") ->  | AS72: =IF(Q73<$Q$9,$O$7,"") -> تقنية المعلومات | AT72: =IF(T73<$T$9,$R$7,"") -> الرياضيات | AU72: =IF(W73<$W$9,$U$7,"") -> الفيزياء | AV72: =IF(Z73<$Z$9,$X$7,"") -> الكيمياء | AW72: =IF(AC73<$AC$9,$AA$7,"") -> الاحياء | AX72: =IF(AF73<$AF$9,$AD$7,"") -> التاريخ | AY72: =IF(AI73<$AI$9,$AG$7,"") -> الجغرافيا | AZ72: =IF(AL73<$AL$9,$AJ$7,"") -> علم الاجتماع
E73: مجموع الفصلين
E74: الفصل الاول | AM74: =IF(AND(H76>=$H$9,K76>=$K$9,N76>=$N$9,Q76>=$Q$9,T76>=$T$9,W76>=$W$9,Z76>=$Z$9,AC76>=$AC$9,AF76>=$AF$9,AI76>=$AI$9,AL76>=$AL$9),SUM(H76,K76,N76,Q76,T76,W76,Z76,AC76,AF76,AI76,AL76),0) -> 0 | AN74: =AM74/1320*100 -> 0 | AO74: =evaltion(AN74) -> راسب | AP74: =IF(AM74=0,"له دور ثان في",IF(AM74>0,"ناجـــــــــــــــــــح")) -> له دور ثان في
E75: الفصل الثاني | AP75: =IF(H76<$H$9,$F$7,"") -> التربية الاسلامية | AQ75: =IF(K76<$K$9,$L$7,"") -> اللغة الانجليزية | AR75: =IF(N76<$N$9,#REF!,"") ->  | AS75: =IF(Q76<$Q$9,$O$7,"") -> تقنية المعلومات | AT75: =IF(T76<$T$9,$R$7,"") -> الرياضيات | AU75: =IF(W76<$W$9,$U$7,"") -> الفيزياء | AV75: =IF(Z76<$Z$9,$X$7,"") -> الكيمياء | AW75: =IF(AC76<$AC$9,$AA$7,"") -> الاحياء | AX75: =IF(AF76<$AF$9,$AD$7,"") -> التاريخ | AY75: =IF(AI76<$AI$9,$AG$7,"") -> الجغرافيا | AZ75: =IF(AL76<$AL$9,$AJ$7,"") -> علم الاجتماع
E76: مجموع الفصلين
E77: الفصل الاول | AM77: =IF(AND(H79>=$H$9,K79>=$K$9,N79>=$N$9,Q79>=$Q$9,T79>=$T$9,W79>=$W$9,Z79>=$Z$9,AC79>=$AC$9,AF79>=$AF$9,AI79>=$AI$9,AL79>=$AL$9),SUM(H79,K79,N79,Q79,T79,W79,Z79,AC79,AF79,AI79,AL79),0) -> 0 | AN77: =AM77/1320*100 -> 0 | AO77: =evaltion(AN77) -> راسب | AP77: =IF(AM77=0,"له دور ثان في",IF(AM77>0,"ناجـــــــــــــــــــح")) -> له دور ثان في
E78: الفصل الثاني | AP78: =IF(H79<$H$9,$F$7,"") -> التربية الاسلامية | AQ78: =IF(K79<$K$9,$L$7,"") -> اللغة الانجليزية | AR78: =IF(N79<$N$9,#REF!,"") ->  | AS78: =IF(Q79<$Q$9,$O$7,"") -> تقنية المعلومات | AT78: =IF(T79<$T$9,$R$7,"") -> الرياضيات | AU78: =IF(W79<$W$9,$U$7,"") -> الفيزياء | AV78: =IF(Z79<$Z$9,$X$7,"") -> الكيمياء | AW78: =IF(AC79<$AC$9,$AA$7,"") -> الاحياء | AX78: =IF(AF79<$AF$9,$AD$7,"") -> التاريخ | AY78: =IF(AI79<$AI$9,$AG$7,"") -> الجغرافيا | AZ78: =IF(AL79<$AL$9,$AJ$7,"") -> علم الاجتماع
E79: مجموع الفصلين
E80: الفصل الاول | AM80: =IF(AND(H82>=$H$9,K82>=$K$9,N82>=$N$9,Q82>=$Q$9,T82>=$T$9,W82>=$W$9,Z82>=$Z$9,AC82>=$AC$9,AF82>=$AF$9,AI82>=$AI$9,AL82>=$AL$9),SUM(H82,K82,N82,Q82,T82,W82,Z82,AC82,AF82,AI82,AL82),0) -> 0 | AN80: =AM80/1320*100 -> 0 | AO80: =evaltion(AN80) -> راسب | AP80: =IF(AM80=0,"له دور ثان في",IF(AM80>0,"ناجـــــــــــــــــــح")) -> له دور ثان في
E81: الفصل الثاني | AP81: =IF(H82<$H$9,$F$7,"") -> التربية الاسلامية | AQ81: =IF(K82<$K$9,$L$7,"") -> اللغة الانجليزية | AR81: =IF(N82<$N$9,#REF!,"") ->  | AS81: =IF(Q82<$Q$9,$O$7,"") -> تقنية المعلومات | AT81: =IF(T82<$T$9,$R$7,"") -> الرياضيات | AU81: =IF(W82<$W$9,$U$7,"") -> الفيزياء | AV81: =IF(Z82<$Z$9,$X$7,"") -> الكيمياء | AW81: =IF(AC82<$AC$9,$AA$7,"") -> الاحياء | AX81: =IF(AF82<$AF$9,$AD$7,"") -> التاريخ | AY81: =IF(AI82<$AI$9,$AG$7,"") -> الجغرافيا | AZ81: =IF(AL82<$AL$9,$AJ$7,"") -> علم الاجتماع
E82: مجموع الفصلين
E83: الفصل الاول | AM83: =IF(AND(H85>=$H$9,K85>=$K$9,N85>=$N$9,Q85>=$Q$9,T85>=$T$9,W85>=$W$9,Z85>=$Z$9,AC85>=$AC$9,AF85>=$AF$9,AI85>=$AI$9,AL85>=$AL$9),SUM(H85,K85,N85,Q85,T85,W85,Z85,AC85,AF85,AI85,AL85),0) -> 0 | AN83: =AM83/1320*100 -> 0 | AO83: =evaltion(AN83) -> راسب | AP83: =IF(AM83=0,"له دور ثان في",IF(AM83>0,"ناجـــــــــــــــــــح")) -> له دور ثان في
E84: الفصل الثاني | AP84: =IF(H85<$H$9,$F$7,"") -> التربية الاسلامية | AQ84: =IF(K85<$K$9,$L$7,"") -> اللغة الانجليزية | AR84: =IF(N85<$N$9,#REF!,"") ->  | AS84: =IF(Q85<$Q$9,$O$7,"") -> تقنية المعلومات | AT84: =IF(T85<$T$9,$R$7,"") -> الرياضيات | AU84: =IF(W85<$W$9,$U$7,"") -> الفيزياء | AV84: =IF(Z85<$Z$9,$X$7,"") -> الكيمياء | AW84: =IF(AC85<$AC$9,$AA$7,"") -> الاحياء | AX84: =IF(AF85<$AF$9,$AD$7,"") -> التاريخ | AY84: =IF(AI85<$AI$9,$AG$7,"") -> الجغرافيا | AZ84: =IF(AL85<$AL$9,$AJ$7,"") -> علم الاجتماع
E85: مجموع الفصلين
E86: الفصل الاول | AM86: =IF(AND(H88>=$H$9,K88>=$K$9,N88>=$N$9,Q88>=$Q$9,T88>=$T$9,W88>=$W$9,Z88>=$Z$9,AC88>=$AC$9,AF88>=$AF$9,AI88>=$AI$9,AL88>=$AL$9),SUM(H88,K88,N88,Q88,T88,W88,Z88,AC88,AF88,AI88,AL88),0) -> 0 | AN86: =AM86/1320*100 -> 0 | AO86: =evaltion(AN86) -> راسب | AP86: =IF(AM86=0,"له دور ثان في",IF(AM86>0,"ناجـــــــــــــــــــح")) -> له دور ثان في
E87: الفصل الثاني | AP87: =IF(H88<$H$9,$F$7,"") -> التربية الاسلامية | AQ87: =IF(K88<$K$9,$L$7,"") -> اللغة الانجليزية | AR87: =IF(N88<$N$9,#REF!,"") ->  | AS87: =IF(Q88<$Q$9,$O$7,"") -> تقنية المعلومات | AT87: =IF(T88<$T$9,$R$7,"") -> الرياضيات | AU87: =IF(W88<$W$9,$U$7,"") -> الفيزياء | AV87: =IF(Z88<$Z$9,$X$7,"") -> الكيمياء | AW87: =IF(AC88<$AC$9,$AA$7,"") -> الاحياء | AX87: =IF(AF88<$AF$9,$AD$7,"") -> التاريخ | AY87: =IF(AI88<$AI$9,$AG$7,"") -> الجغرافيا | AZ87: =IF(AL88<$AL$9,$AJ$7,"") -> علم الاجتماع
E88: مجموع الفصلين
E89: الفصل الاول | AM89: =IF(AND(H91>=$H$9,K91>=$K$9,N91>=$N$9,Q91>=$Q$9,T91>=$T$9,W91>=$W$9,Z91>=$Z$9,AC91>=$AC$9,AF91>=$AF$9,AI91>=$AI$9,AL91>=$AL$9),SUM(H91,K91,N91,Q91,T91,W91,Z91,AC91,AF91,AI91,AL91),0) -> 0 | AN89: =AM89/1320*100 -> 0 | AO89: =evaltion(AN89) -> راسب | AP89: =IF(AM89=0,"له دور ثان في",IF(AM89>0,"ناجـــــــــــــــــــح")) -> له دور ثان في
E90: الفصل الثاني | AP90: =IF(H91<$H$9,$F$7,"") -> التربية الاسلامية | AQ90: =IF(K91<$K$9,$L$7,"") -> اللغة الانجليزية | AR90: =IF(N91<$N$9,#REF!,"") ->  | AS90: =IF(Q91<$Q$9,$O$7,"") -> تقنية المعلومات | AT90: =IF(T91<$T$9,$R$7,"") -> الرياضيات | AU90: =IF(W91<$W$9,$U$7,"") -> الفيزياء | AV90: =IF(Z91<$Z$9,$X$7,"") -> الكيمياء | AW90: =IF(AC91<$AC$9,$AA$7,"") -> الاحياء | AX90: =IF(AF91<$AF$9,$AD$7,"") -> التاريخ | AY90: =IF(AI91<$AI$9,$AG$7,"") -> الجغرافيا | AZ90: =IF(AL91<$AL$9,$AJ$7,"") -> علم الاجتماع
E91: مجموع الفصلين
E92: الفصل الاول | AM92: =IF(AND(H94>=$H$9,K94>=$K$9,N94>=$N$9,Q94>=$Q$9,T94>=$T$9,W94>=$W$9,Z94>=$Z$9,AC94>=$AC$9,AF94>=$AF$9,AI94>=$AI$9,AL94>=$AL$9),SUM(H94,K94,N94,Q94,T94,W94,Z94,AC94,AF94,AI94,AL94),0) -> 0 | AN92: =AM92/1320*100 -> 0 | AO92: =evaltion(AN92) -> راسب | AP92: =IF(AM92=0,"له دور ثان في",IF(AM92>0,"ناجـــــــــــــــــــح")) -> له دور ثان في
E93: الفصل الثاني | AP93: =IF(H94<$H$9,$F$7,"") -> التربية الاسلامية | AQ93: =IF(K94<$K$9,$L$7,"") -> اللغة الانجليزية | AR93: =IF(N94<$N$9,#REF!,"") ->  | AS93: =IF(Q94<$Q$9,$O$7,"") -> تقنية المعلومات | AT93: =IF(T94<$T$9,$R$7,"") -> الرياضيات | AU93: =IF(W94<$W$9,$U$7,"") -> الفيزياء | AV93: =IF(Z94<$Z$9,$X$7,"") -> الكيمياء | AW93: =IF(AC94<$AC$9,$AA$7,"") -> الاحياء | AX93: =IF(AF94<$AF$9,$AD$7,"") -> التاريخ | AY93: =IF(AI94<$AI$9,$AG$7,"") -> الجغرافيا | AZ93: =IF(AL94<$AL$9,$AJ$7,"") -> علم الاجتماع
E94: مجموع الفصلين
E95: الفصل الاول | AM95: =IF(AND(H97>=$H$9,K97>=$K$9,N97>=$N$9,Q97>=$Q$9,T97>=$T$9,W97>=$W$9,Z97>=$Z$9,AC97>=$AC$9,AF97>=$AF$9,AI97>=$AI$9,AL97>=$AL$9),SUM(H97,K97,N97,Q97,T97,W97,Z97,AC97,AF97,AI97,AL97),0) -> 0 | AN95: =AM95/1320*100 -> 0 | AO95: =evaltion(AN95) -> راسب | AP95: =IF(AM95=0,"له دور ثان في",IF(AM95>0,"ناجـــــــــــــــــــح")) -> له دور ثان في
E96: الفصل الثاني | AP96: =IF(H97<$H$9,$F$7,"") -> التربية الاسلامية | AQ96: =IF(K97<$K$9,$L$7,"") -> اللغة الانجليزية | AR96: =IF(N97<$N$9,#REF!,"") ->  | AS96: =IF(Q97<$Q$9,$O$7,"") -> تقنية المعلومات | AT96: =IF(T97<$T$9,$R$7,"") -> الرياضيات | AU96: =IF(W97<$W$9,$U$7,"") -> الفيزياء | AV96: =IF(Z97<$Z$9,$X$7,"") -> الكيمياء | AW96: =IF(AC97<$AC$9,$AA$7,"") -> الاحياء | AX96: =IF(AF97<$AF$9,$AD$7,"") -> التاريخ | AY96: =IF(AI97<$AI$9,$AG$7,"") -> الجغرافيا | AZ96: =IF(AL97<$AL$9,$AJ$7,"") -> علم الاجتماع
E97: مجموع الفصلين
E98: الفصل الاول | AM98: =IF(AND(H100>=$H$9,K100>=$K$9,N100>=$N$9,Q100>=$Q$9,T100>=$T$9,W100>=$W$9,Z100>=$Z$9,AC100>=$AC$9,AF100>=$AF$9,AI100>=$AI$9,AL100>=$AL$9),SUM(H100,K100,N100,Q100,T100,W100,Z100,AC100,AF100,AI100,AL100),0) -> 0 | AN98: =AM98/1320*100 -> 0 | AO98: =evaltion(AN98) -> راسب | AP98: =IF(AM98=0,"له دور ثان في",IF(AM98>0,"ناجـــــــــــــــــــح")) -> له دور ثان في
E99: الفصل الثاني | AP99: =IF(H100<$H$9,$F$7,"") -> التربية الاسلامية | AQ99: =IF(K100<$K$9,$L$7,"") -> اللغة الانجليزية | AR99: =IF(N100<$N$9,#REF!,"") ->  | AS99: =IF(Q100<$Q$9,$O$7,"") -> تقنية المعلومات | AT99: =IF(T100<$T$9,$R$7,"") -> الرياضيات | AU99: =IF(W100<$W$9,$U$7,"") -> الفيزياء | AV99: =IF(Z100<$Z$9,$X$7,"") -> الكيمياء | AW99: =IF(AC100<$AC$9,$AA$7,"") -> الاحياء | AX99: =IF(AF100<$AF$9,$AD$7,"") -> التاريخ | AY99: =IF(AI100<$AI$9,$AG$7,"") -> الجغرافيا | AZ99: =IF(AL100<$AL$9,$AJ$7,"") -> علم الاجتماع
E100: مجموع الفصلين
E101: الفصل الاول | AM101: =IF(AND(H103>=$H$9,K103>=$K$9,N103>=$N$9,Q103>=$Q$9,T103>=$T$9,W103>=$W$9,Z103>=$Z$9,AC103>=$AC$9,AF103>=$AF$9,AI103>=$AI$9,AL103>=$AL$9),SUM(H103,K103,N103,Q103,T103,W103,Z103,AC103,AF103,AI103,AL103),0) -> 0 | AN101: =AM101/1320*100 -> 0 | AO101: =evaltion(AN101) -> راسب | AP101: =IF(AM101=0,"له دور ثان في",IF(AM101>0,"ناجـــــــــــــــــــح")) -> له دور ثان في
E102: الفصل الثاني | AP102: =IF(H103<$H$9,$F$7,"") -> التربية الاسلامية | AQ102: =IF(K103<$K$9,$L$7,"") -> اللغة الانجليزية | AR102: =IF(N103<$N$9,#REF!,"") ->  | AS102: =IF(Q103<$Q$9,$O$7,"") -> تقنية المعلومات | AT102: =IF(T103<$T$9,$R$7,"") -> الرياضيات | AU102: =IF(W103<$W$9,$U$7,"") -> الفيزياء | AV102: =IF(Z103<$Z$9,$X$7,"") -> الكيمياء | AW102: =IF(AC103<$AC$9,$AA$7,"") -> الاحياء | AX102: =IF(AF103<$AF$9,$AD$7,"") -> التاريخ | AY102: =IF(AI103<$AI$9,$AG$7,"") -> الجغرافيا | AZ102: =IF(AL103<$AL$9,$AJ$7,"") -> علم الاجتماع
E103: مجموع الفصلين
E104: الفصل الاول | AM104: =IF(AND(H106>=$H$9,K106>=$K$9,N106>=$N$9,Q106>=$Q$9,T106>=$T$9,W106>=$W$9,Z106>=$Z$9,AC106>=$AC$9,AF106>=$AF$9,AI106>=$AI$9,AL106>=$AL$9),SUM(H106,K106,N106,Q106,T106,W106,Z106,AC106,AF106,AI106,AL106),0) -> 0 | AN104: =AM104/1320*100 -> 0 | AO104: =evaltion(AN104) -> راسب | AP104: =IF(AM104=0,"له دور ثان في",IF(AM104>0,"ناجـــــــــــــــــــح")) -> له دور ثان في
E105: الفصل الثاني | AP105: =IF(H106<$H$9,$F$7,"") -> التربية الاسلامية | AQ105: =IF(K106<$K$9,$L$7,"") -> اللغة الانجليزية | AR105: =IF(N106<$N$9,#REF!,"") ->  | AS105: =IF(Q106<$Q$9,$O$7,"") -> تقنية المعلومات | AT105: =IF(T106<$T$9,$R$7,"") -> الرياضيات | AU105: =IF(W106<$W$9,$U$7,"") -> الفيزياء | AV105: =IF(Z106<$Z$9,$X$7,"") -> الكيمياء | AW105: =IF(AC106<$AC$9,$AA$7,"") -> الاحياء | AX105: =IF(AF106<$AF$9,$AD$7,"") -> التاريخ | AY105: =IF(AI106<$AI$9,$AG$7,"") -> الجغرافيا | AZ105: =IF(AL106<$AL$9,$AJ$7,"") -> علم الاجتماع
E106: مجموع الفصلين
E107: الفصل الاول | AM107: =IF(AND(H109>=$H$9,K109>=$K$9,N109>=$N$9,Q109>=$Q$9,T109>=$T$9,W109>=$W$9,Z109>=$Z$9,AC109>=$AC$9,AF109>=$AF$9,AI109>=$AI$9,AL109>=$AL$9),SUM(H109,K109,N109,Q109,T109,W109,Z109,AC109,AF109,AI109,AL109),0) -> 0 | AN107: =AM107/1320*100 -> 0 | AO107: =evaltion(AN107) -> راسب | AP107: =IF(AM107=0,"له دور ثان في",IF(AM107>0,"ناجـــــــــــــــــــح")) -> له دور ثان في
E108: الفصل الثاني | AP108: =IF(H109<$H$9,$F$7,"") -> التربية الاسلامية | AQ108: =IF(K109<$K$9,$L$7,"") -> اللغة الانجليزية | AR108: =IF(N109<$N$9,#REF!,"") ->  | AS108: =IF(Q109<$Q$9,$O$7,"") -> تقنية المعلومات | AT108: =IF(T109<$T$9,$R$7,"") -> الرياضيات | AU108: =IF(W109<$W$9,$U$7,"") -> الفيزياء | AV108: =IF(Z109<$Z$9,$X$7,"") -> الكيمياء | AW108: =IF(AC109<$AC$9,$AA$7,"") -> الاحياء | AX108: =IF(AF109<$AF$9,$AD$7,"") -> التاريخ | AY108: =IF(AI109<$AI$9,$AG$7,"") -> الجغرافيا | AZ108: =IF(AL109<$AL$9,$AJ$7,"") -> علم الاجتماع
E109: مجموع الفصلين
E110: الفصل الاول | AM110: =IF(AND(H112>=$H$9,K112>=$K$9,N112>=$N$9,Q112>=$Q$9,T112>=$T$9,W112>=$W$9,Z112>=$Z$9,AC112>=$AC$9,AF112>=$AF$9,AI112>=$AI$9,AL112>=$AL$9),SUM(H112,K112,N112,Q112,T112,W112,Z112,AC112,AF112,AI112,AL112),0) -> 0 | AN110: =AM110/1320*100 -> 0 | AO110: =evaltion(AN110) -> راسب | AP110: =IF(AM110=0,"له دور ثان في",IF(AM110>0,"ناجـــــــــــــــــــح")) -> له دور ثان في
E111: الفصل الثاني | AP111: =IF(H112<$H$9,$F$7,"") -> التربية الاسلامية | AQ111: =IF(K112<$K$9,$L$7,"") -> اللغة الانجليزية | AR111: =IF(N112<$N$9,#REF!,"") ->  | AS111: =IF(Q112<$Q$9,$O$7,"") -> تقنية المعلومات | AT111: =IF(T112<$T$9,$R$7,"") -> الرياضيات | AU111: =IF(W112<$W$9,$U$7,"") -> الفيزياء | AV111: =IF(Z112<$Z$9,$X$7,"") -> الكيمياء | AW111: =IF(AC112<$AC$9,$AA$7,"") -> الاحياء | AX111: =IF(AF112<$AF$9,$AD$7,"") -> التاريخ | AY111: =IF(AI112<$AI$9,$AG$7,"") -> الجغرافيا | AZ111: =IF(AL112<$AL$9,$AJ$7,"") -> علم الاجتماع
E112: مجموع الفصلين
E113: الفصل الاول | AM113: =IF(AND(H115>=$H$9,K115>=$K$9,N115>=$N$9,Q115>=$Q$9,T115>=$T$9,W115>=$W$9,Z115>=$Z$9,AC115>=$AC$9,AF115>=$AF$9,AI115>=$AI$9,AL115>=$AL$9),SUM(H115,K115,N115,Q115,T115,W115,Z115,AC115,AF115,AI115,AL115),0) -> 0 | AN113: =AM113/1320*100 -> 0 | AO113: =evaltion(AN113) -> راسب | AP113: =IF(AM113=0,"له دور ثان في",IF(AM113>0,"ناجـــــــــــــــــــح")) -> له دور ثان في
E114: الفصل الثاني | AP114: =IF(H115<$H$9,$F$7,"") -> التربية الاسلامية | AQ114: =IF(K115<$K$9,$L$7,"") -> اللغة الانجليزية | AR114: =IF(N115<$N$9,#REF!,"") ->  | AS114: =IF(Q115<$Q$9,$O$7,"") -> تقنية المعلومات | AT114: =IF(T115<$T$9,$R$7,"") -> الرياضيات | AU114: =IF(W115<$W$9,$U$7,"") -> الفيزياء | AV114: =IF(Z115<$Z$9,$X$7,"") -> الكيمياء | AW114: =IF(AC115<$AC$9,$AA$7,"") -> الاحياء | AX114: =IF(AF115<$AF$9,$AD$7,"") -> التاريخ | AY114: =IF(AI115<$AI$9,$AG$7,"") -> الجغرافيا | AZ114: =IF(AL115<$AL$9,$AJ$7,"") -> علم الاجتماع
E115: مجموع الفصلين
E116: الفصل الاول | AM116: =IF(AND(H118>=$H$9,K118>=$K$9,N118>=$N$9,Q118>=$Q$9,T118>=$T$9,W118>=$W$9,Z118>=$Z$9,AC118>=$AC$9,AF118>=$AF$9,AI118>=$AI$9,AL118>=$AL$9),SUM(H118,K118,N118,Q118,T118,W118,Z118,AC118,AF118,AI118,AL118),0) -> 0 | AN116: =AM116/1320*100 -> 0 | AO116: =evaltion(AN116) -> راسب | AP116: =IF(AM116=0,"له دور ثان في",IF(AM116>0,"ناجـــــــــــــــــــح")) -> له دور ثان في
E117: الفصل الثاني | AP117: =IF(H118<$H$9,$F$7,"") -> التربية الاسلامية | AQ117: =IF(K118<$K$9,$L$7,"") -> اللغة الانجليزية | AR117: =IF(N118<$N$9,#REF!,"") ->  | AS117: =IF(Q118<$Q$9,$O$7,"") -> تقنية المعلومات | AT117: =IF(T118<$T$9,$R$7,"") -> الرياضيات | AU117: =IF(W118<$W$9,$U$7,"") -> الفيزياء | AV117: =IF(Z118<$Z$9,$X$7,"") -> الكيمياء | AW117: =IF(AC118<$AC$9,$AA$7,"") -> الاحياء | AX117: =IF(AF118<$AF$9,$AD$7,"") -> التاريخ | AY117: =IF(AI118<$AI$9,$AG$7,"") -> الجغرافيا | AZ117: =IF(AL118<$AL$9,$AJ$7,"") -> علم الاجتماع
E118: مجموع الفصلين
E119: الفصل الاول | AM119: =IF(AND(H121>=$H$9,K121>=$K$9,N121>=$N$9,Q121>=$Q$9,T121>=$T$9,W121>=$W$9,Z121>=$Z$9,AC121>=$AC$9,AF121>=$AF$9,AI121>=$AI$9,AL121>=$AL$9),SUM(H121,K121,N121,Q121,T121,W121,Z121,AC121,AF121,AI121,AL121),0) -> 0 | AN119: =AM119/1320*100 -> 0 | AO119: =evaltion(AN119) -> راسب | AP119: =IF(AM119=0,"له دور ثان في",IF(AM119>0,"ناجـــــــــــــــــــح")) -> له دور ثان في
E120: الفصل الثاني | AP120: =IF(H121<$H$9,$F$7,"") -> التربية الاسلامية | AQ120: =IF(K121<$K$9,$L$7,"") -> اللغة الانجليزية | AR120: =IF(N121<$N$9,#REF!,"") ->  | AS120: =IF(Q121<$Q$9,$O$7,"") -> تقنية المعلومات | AT120: =IF(T121<$T$9,$R$7,"") -> الرياضيات | AU120: =IF(W121<$W$9,$U$7,"") -> الفيزياء | AV120: =IF(Z121<$Z$9,$X$7,"") -> الكيمياء | AW120: =IF(AC121<$AC$9,$AA$7,"") -> الاحياء | AX120: =IF(AF121<$AF$9,$AD$7,"") -> التاريخ | AY120: =IF(AI121<$AI$9,$AG$7,"") -> الجغرافيا | AZ120: =IF(AL121<$AL$9,$AJ$7,"") -> علم الاجتماع
E121: مجموع الفصلين
E122: الفصل الاول | AM122: =IF(AND(H124>=$H$9,K124>=$K$9,N124>=$N$9,Q124>=$Q$9,T124>=$T$9,W124>=$W$9,Z124>=$Z$9,AC124>=$AC$9,AF124>=$AF$9,AI124>=$AI$9,AL124>=$AL$9),SUM(H124,K124,N124,Q124,T124,W124,Z124,AC124,AF124,AI124,AL124),0) -> 0 | AN122: =AM122/1320*100 -> 0 | AO122: =evaltion(AN122) -> راسب | AP122: =IF(AM122=0,"له دور ثان في",IF(AM122>0,"ناجـــــــــــــــــــح")) -> له دور ثان في
E123: الفصل الثاني | AP123: =IF(H124<$H$9,$F$7,"") -> التربية الاسلامية | AQ123: =IF(K124<$K$9,$L$7,"") -> اللغة الانجليزية | AR123: =IF(N124<$N$9,#REF!,"") ->  | AS123: =IF(Q124<$Q$9,$O$7,"") -> تقنية المعلومات | AT123: =IF(T124<$T$9,$R$7,"") -> الرياضيات | AU123: =IF(W124<$W$9,$U$7,"") -> الفيزياء | AV123: =IF(Z124<$Z$9,$X$7,"") -> الكيمياء | AW123: =IF(AC124<$AC$9,$AA$7,"") -> الاحياء | AX123: =IF(AF124<$AF$9,$AD$7,"") -> التاريخ | AY123: =IF(AI124<$AI$9,$AG$7,"") -> الجغرافيا | AZ123: =IF(AL124<$AL$9,$AJ$7,"") -> علم الاجتماع
E124: مجموع الفصلين
E125: الفصل الاول | AM125: =IF(AND(H127>=$H$9,K127>=$K$9,N127>=$N$9,Q127>=$Q$9,T127>=$T$9,W127>=$W$9,Z127>=$Z$9,AC127>=$AC$9,AF127>=$AF$9,AI127>=$AI$9,AL127>=$AL$9),SUM(H127,K127,N127,Q127,T127,W127,Z127,AC127,AF127,AI127,AL127),0) -> 0 | AN125: =AM125/1320*100 -> 0 | AO125: =evaltion(AN125) -> راسب | AP125: =IF(AM125=0,"له دور ثان في",IF(AM125>0,"ناجـــــــــــــــــــح")) -> له دور ثان في
E126: الفصل الثاني | AP126: =IF(H127<$H$9,$F$7,"") -> التربية الاسلامية | AQ126: =IF(K127<$K$9,$L$7,"") -> اللغة الانجليزية | AR126: =IF(N127<$N$9,#REF!,"") ->  | AS126: =IF(Q127<$Q$9,$O$7,"") -> تقنية المعلومات | AT126: =IF(T127<$T$9,$R$7,"") -> الرياضيات | AU126: =IF(W127<$W$9,$U$7,"") -> الفيزياء | AV126: =IF(Z127<$Z$9,$X$7,"") -> الكيمياء | AW126: =IF(AC127<$AC$9,$AA$7,"") -> الاحياء | AX126: =IF(AF127<$AF$9,$AD$7,"") -> التاريخ | AY126: =IF(AI127<$AI$9,$AG$7,"") -> الجغرافيا | AZ126: =IF(AL127<$AL$9,$AJ$7,"") -> علم الاجتماع
E127: مجموع الفصلين
E128: الفصل الاول | AM128: =IF(AND(H130>=$H$9,K130>=$K$9,N130>=$N$9,Q130>=$Q$9,T130>=$T$9,W130>=$W$9,Z130>=$Z$9,AC130>=$AC$9,AF130>=$AF$9,AI130>=$AI$9,AL130>=$AL$9),SUM(H130,K130,N130,Q130,T130,W130,Z130,AC130,AF130,AI130,AL130),0) -> 0 | AN128: =AM128/1320*100 -> 0 | AO128: =evaltion(AN128) -> راسب | AP128: =IF(AM128=0,"له دور ثان في",IF(AM128>0,"ناجـــــــــــــــــــح")) -> له دور ثان في
E129: الفصل الثاني | AP129: =IF(H130<$H$9,$F$7,"") -> التربية الاسلامية | AQ129: =IF(K130<$K$9,$L$7,"") -> اللغة الانجليزية | AR129: =IF(N130<$N$9,#REF!,"") ->  | AS129: =IF(Q130<$Q$9,$O$7,"") -> تقنية المعلومات | AT129: =IF(T130<$T$9,$R$7,"") -> الرياضيات | AU129: =IF(W130<$W$9,$U$7,"") -> الفيزياء | AV129: =IF(Z130<$Z$9,$X$7,"") -> الكيمياء | AW129: =IF(AC130<$AC$9,$AA$7,"") -> الاحياء | AX129: =IF(AF130<$AF$9,$AD$7,"") -> التاريخ | AY129: =IF(AI130<$AI$9,$AG$7,"") -> الجغرافيا | AZ129: =IF(AL130<$AL$9,$AJ$7,"") -> علم الاجتماع
E130: مجموع الفصلين
E131: الفصل الاول | AM131: =IF(AND(H133>=$H$9,K133>=$K$9,N133>=$N$9,Q133>=$Q$9,T133>=$T$9,W133>=$W$9,Z133>=$Z$9,AC133>=$AC$9,AF133>=$AF$9,AI133>=$AI$9,AL133>=$AL$9),SUM(H133,K133,N133,Q133,T133,W133,Z133,AC133,AF133,AI133,AL133),0) -> 0 | AN131: =AM131/1320*100 -> 0 | AO131: =evaltion(AN131) -> راسب | AP131: =IF(AM131=0,"له دور ثان في",IF(AM131>0,"ناجـــــــــــــــــــح")) -> له دور ثان في
E132: الفصل الثاني | AP132: =IF(H133<$H$9,$F$7,"") -> التربية الاسلامية | AQ132: =IF(K133<$K$9,$L$7,"") -> اللغة الانجليزية | AR132: =IF(N133<$N$9,#REF!,"") ->  | AS132: =IF(Q133<$Q$9,$O$7,"") -> تقنية المعلومات | AT132: =IF(T133<$T$9,$R$7,"") -> الرياضيات | AU132: =IF(W133<$W$9,$U$7,"") -> الفيزياء | AV132: =IF(Z133<$Z$9,$X$7,"") -> الكيمياء | AW132: =IF(AC133<$AC$9,$AA$7,"") -> الاحياء | AX132: =IF(AF133<$AF$9,$AD$7,"") -> التاريخ | AY132: =IF(AI133<$AI$9,$AG$7,"") -> الجغرافيا | AZ132: =IF(AL133<$AL$9,$AJ$7,"") -> علم الاجتماع
E133: مجموع الفصلين
E134: الفصل الاول | AM134: =IF(AND(H136>=$H$9,K136>=$K$9,N136>=$N$9,Q136>=$Q$9,T136>=$T$9,W136>=$W$9,Z136>=$Z$9,AC136>=$AC$9,AF136>=$AF$9,AI136>=$AI$9,AL136>=$AL$9),SUM(H136,K136,N136,Q136,T136,W136,Z136,AC136,AF136,AI136,AL136),0) -> 0 | AN134: =AM134/1320*100 -> 0 | AO134: =evaltion(AN134) -> راسب | AP134: =IF(AM134=0,"له دور ثان في",IF(AM134>0,"ناجـــــــــــــــــــح")) -> له دور ثان في
E135: الفصل الثاني | AP135: =IF(H136<$H$9,$F$7,"") -> التربية الاسلامية | AQ135: =IF(K136<$K$9,$L$7,"") -> اللغة الانجليزية | AR135: =IF(N136<$N$9,#REF!,"") ->  | AS135: =IF(Q136<$Q$9,$O$7,"") -> تقنية المعلومات | AT135: =IF(T136<$T$9,$R$7,"") -> الرياضيات | AU135: =IF(W136<$W$9,$U$7,"") -> الفيزياء | AV135: =IF(Z136<$Z$9,$X$7,"") -> الكيمياء | AW135: =IF(AC136<$AC$9,$AA$7,"") -> الاحياء | AX135: =IF(AF136<$AF$9,$AD$7,"") -> التاريخ | AY135: =IF(AI136<$AI$9,$AG$7,"") -> الجغرافيا | AZ135: =IF(AL136<$AL$9,$AJ$7,"") -> علم الاجتماع
E136: مجموع الفصلين
E137: الفصل الاول | AM137: =IF(AND(H139>=$H$9,K139>=$K$9,N139>=$N$9,Q139>=$Q$9,T139>=$T$9,W139>=$W$9,Z139>=$Z$9,AC139>=$AC$9,AF139>=$AF$9,AI139>=$AI$9,AL139>=$AL$9),SUM(H139,K139,N139,Q139,T139,W139,Z139,AC139,AF139,AI139,AL139),0) -> 0 | AN137: =AM137/1320*100 -> 0 | AO137: =evaltion(AN137) -> راسب | AP137: =IF(AM137=0,"له دور ثان في",IF(AM137>0,"ناجـــــــــــــــــــح")) -> له دور ثان في
E138: الفصل الثاني | AP138: =IF(H139<$H$9,$F$7,"") -> التربية الاسلامية | AQ138: =IF(K139<$K$9,$L$7,"") -> اللغة الانجليزية | AR138: =IF(N139<$N$9,#REF!,"") ->  | AS138: =IF(Q139<$Q$9,$O$7,"") -> تقنية المعلومات | AT138: =IF(T139<$T$9,$R$7,"") -> الرياضيات | AU138: =IF(W139<$W$9,$U$7,"") -> الفيزياء | AV138: =IF(Z139<$Z$9,$X$7,"") -> الكيمياء | AW138: =IF(AC139<$AC$9,$AA$7,"") -> الاحياء | AX138: =IF(AF139<$AF$9,$AD$7,"") -> التاريخ | AY138: =IF(AI139<$AI$9,$AG$7,"") -> الجغرافيا | AZ138: =IF(AL139<$AL$9,$AJ$7,"") -> علم الاجتماع
E139: مجموع الفصلين
E140: الفصل الاول | AM140: =IF(AND(H142>=$H$9,K142>=$K$9,N142>=$N$9,Q142>=$Q$9,T142>=$T$9,W142>=$W$9,Z142>=$Z$9,AC142>=$AC$9,AF142>=$AF$9,AI142>=$AI$9,AL142>=$AL$9),SUM(H142,K142,N142,Q142,T142,W142,Z142,AC142,AF142,AI142,AL142),0) -> 0 | AN140: =AM140/1320*100 -> 0 | AO140: =evaltion(AN140) -> راسب | AP140: =IF(AM140=0,"له دور ثان في",IF(AM140>0,"ناجـــــــــــــــــــح")) -> له دور ثان في
E141: الفصل الثاني | AP141: =IF(H142<$H$9,$F$7,"") -> التربية الاسلامية | AQ141: =IF(K142<$K$9,$L$7,"") -> اللغة الانجليزية | AR141: =IF(N142<$N$9,#REF!,"") ->  | AS141: =IF(Q142<$Q$9,$O$7,"") -> تقنية المعلومات | AT141: =IF(T142<$T$9,$R$7,"") -> الرياضيات | AU141: =IF(W142<$W$9,$U$7,"") -> الفيزياء | AV141: =IF(Z142<$Z$9,$X$7,"") -> الكيمياء | AW141: =IF(AC142<$AC$9,$AA$7,"") -> الاحياء | AX141: =IF(AF142<$AF$9,$AD$7,"") -> التاريخ | AY141: =IF(AI142<$AI$9,$AG$7,"") -> الجغرافيا | AZ141: =IF(AL142<$AL$9,$AJ$7,"") -> علم الاجتماع
E142: مجموع الفصلين
E143: الفصل الاول | AM143: =IF(AND(H145>=$H$9,K145>=$K$9,N145>=$N$9,Q145>=$Q$9,T145>=$T$9,W145>=$W$9,Z145>=$Z$9,AC145>=$AC$9,AF145>=$AF$9,AI145>=$AI$9,AL145>=$AL$9),SUM(H145,K145,N145,Q145,T145,W145,Z145,AC145,AF145,AI145,AL145),0) -> 0 | AN143: =AM143/1320*100 -> 0 | AO143: =evaltion(AN143) -> راسب | AP143: =IF(AM143=0,"له دور ثان في",IF(AM143>0,"ناجـــــــــــــــــــح")) -> له دور ثان في
E144: الفصل الثاني | AP144: =IF(H145<$H$9,$F$7,"") -> التربية الاسلامية | AQ144: =IF(K145<$K$9,$L$7,"") -> اللغة الانجليزية | AR144: =IF(N145<$N$9,#REF!,"") ->  | AS144: =IF(Q145<$Q$9,$O$7,"") -> تقنية المعلومات | AT144: =IF(T145<$T$9,$R$7,"") -> الرياضيات | AU144: =IF(W145<$W$9,$U$7,"") -> الفيزياء | AV144: =IF(Z145<$Z$9,$X$7,"") -> الكيمياء | AW144: =IF(AC145<$AC$9,$AA$7,"") -> الاحياء | AX144: =IF(AF145<$AF$9,$AD$7,"") -> التاريخ | AY144: =IF(AI145<$AI$9,$AG$7,"") -> الجغرافيا | AZ144: =IF(AL145<$AL$9,$AJ$7,"") -> علم الاجتماع
E145: مجموع الفصلين
E146: الفصل الاول | AM146: =IF(AND(H148>=$H$9,K148>=$K$9,N148>=$N$9,Q148>=$Q$9,T148>=$T$9,W148>=$W$9,Z148>=$Z$9,AC148>=$AC$9,AF148>=$AF$9,AI148>=$AI$9,AL148>=$AL$9),SUM(H148,K148,N148,Q148,T148,W148,Z148,AC148,AF148,AI148,AL148),0) -> 0 | AN146: =AM146/1320*100 -> 0 | AO146: =evaltion(AN146) -> راسب | AP146: =IF(AM146=0,"له دور ثان في",IF(AM146>0,"ناجـــــــــــــــــــح")) -> له دور ثان في
E147: الفصل الثاني | AP147: =IF(H148<$H$9,$F$7,"") -> التربية الاسلامية | AQ147: =IF(K148<$K$9,$L$7,"") -> اللغة الانجليزية | AR147: =IF(N148<$N$9,#REF!,"") ->  | AS147: =IF(Q148<$Q$9,$O$7,"") -> تقنية المعلومات | AT147: =IF(T148<$T$9,$R$7,"") -> الرياضيات | AU147: =IF(W148<$W$9,$U$7,"") -> الفيزياء | AV147: =IF(Z148<$Z$9,$X$7,"") -> الكيمياء | AW147: =IF(AC148<$AC$9,$AA$7,"") -> الاحياء | AX147: =IF(AF148<$AF$9,$AD$7,"") -> التاريخ | AY147: =IF(AI148<$AI$9,$AG$7,"") -> الجغرافيا | AZ147: =IF(AL148<$AL$9,$AJ$7,"") -> علم الاجتماع
E148: مجموع الفصلين
E149: الفصل الاول | AM149: =IF(AND(H151>=$H$9,K151>=$K$9,N151>=$N$9,Q151>=$Q$9,T151>=$T$9,W151>=$W$9,Z151>=$Z$9,AC151>=$AC$9,AF151>=$AF$9,AI151>=$AI$9,AL151>=$AL$9),SUM(H151,K151,N151,Q151,T151,W151,Z151,AC151,AF151,AI151,AL151),0) -> 0 | AN149: =AM149/1320*100 -> 0 | AO149: =evaltion(AN149) -> راسب | AP149: =IF(AM149=0,"له دور ثان في",IF(AM149>0,"ناجـــــــــــــــــــح")) -> له دور ثان في
E150: الفصل الثاني | AP150: =IF(H151<$H$9,$F$7,"") -> التربية الاسلامية | AQ150: =IF(K151<$K$9,$L$7,"") -> اللغة الانجليزية | AR150: =IF(N151<$N$9,#REF!,"") ->  | AS150: =IF(Q151<$Q$9,$O$7,"") -> تقنية المعلومات | AT150: =IF(T151<$T$9,$R$7,"") -> الرياضيات | AU150: =IF(W151<$W$9,$U$7,"") -> الفيزياء | AV150: =IF(Z151<$Z$9,$X$7,"") -> الكيمياء | AW150: =IF(AC151<$AC$9,$AA$7,"") -> الاحياء | AX150: =IF(AF151<$AF$9,$AD$7,"") -> التاريخ | AY150: =IF(AI151<$AI$9,$AG$7,"") -> الجغرافيا | AZ150: =IF(AL151<$AL$9,$AJ$7,"") -> علم الاجتماع
E151: مجموع الفصلين
E152: الفصل الاول | AM152: =IF(AND(H154>=$H$9,K154>=$K$9,N154>=$N$9,Q154>=$Q$9,T154>=$T$9,W154>=$W$9,Z154>=$Z$9,AC154>=$AC$9,AF154>=$AF$9,AI154>=$AI$9,AL154>=$AL$9),SUM(H154,K154,N154,Q154,T154,W154,Z154,AC154,AF154,AI154,AL154),0) -> 0 | AN152: =AM152/1320*100 -> 0 | AO152: =evaltion(AN152) -> راسب | AP152: =IF(AM152=0,"له دور ثان في",IF(AM152>0,"ناجـــــــــــــــــــح")) -> له دور ثان في
E153: الفصل الثاني | AP153: =IF(H154<$H$9,$F$7,"") -> التربية الاسلامية | AQ153: =IF(K154<$K$9,$L$7,"") -> اللغة الانجليزية | AR153: =IF(N154<$N$9,#REF!,"") ->  | AS153: =IF(Q154<$Q$9,$O$7,"") -> تقنية المعلومات | AT153: =IF(T154<$T$9,$R$7,"") -> الرياضيات | AU153: =IF(W154<$W$9,$U$7,"") -> الفيزياء | AV153: =IF(Z154<$Z$9,$X$7,"") -> الكيمياء | AW153: =IF(AC154<$AC$9,$AA$7,"") -> الاحياء | AX153: =IF(AF154<$AF$9,$AD$7,"") -> التاريخ | AY153: =IF(AI154<$AI$9,$AG$7,"") -> الجغرافيا | AZ153: =IF(AL154<$AL$9,$AJ$7,"") -> علم الاجتماع
E154: مجموع الفصلين
E155: الفصل الاول | AM155: =IF(AND(H157>=$H$9,K157>=$K$9,N157>=$N$9,Q157>=$Q$9,T157>=$T$9,W157>=$W$9,Z157>=$Z$9,AC157>=$AC$9,AF157>=$AF$9,AI157>=$AI$9,AL157>=$AL$9),SUM(H157,K157,N157,Q157,T157,W157,Z157,AC157,AF157,AI157,AL157),0) -> 0 | AN155: =AM155/1320*100 -> 0 | AO155: =evaltion(AN155) -> راسب | AP155: =IF(AM155=0,"له دور ثان في",IF(AM155>0,"ناجـــــــــــــــــــح")) -> له دور ثان في
E156: الفصل الثاني | AP156: =IF(H157<$H$9,$F$7,"") -> التربية الاسلامية | AQ156: =IF(K157<$K$9,$L$7,"") -> اللغة الانجليزية | AR156: =IF(N157<$N$9,#REF!,"") ->  | AS156: =IF(Q157<$Q$9,$O$7,"") -> تقنية المعلومات | AT156: =IF(T157<$T$9,$R$7,"") -> الرياضيات | AU156: =IF(W157<$W$9,$U$7,"") -> الفيزياء | AV156: =IF(Z157<$Z$9,$X$7,"") -> الكيمياء | AW156: =IF(AC157<$AC$9,$AA$7,"") -> الاحياء | AX156: =IF(AF157<$AF$9,$AD$7,"") -> التاريخ | AY156: =IF(AI157<$AI$9,$AG$7,"") -> الجغرافيا | AZ156: =IF(AL157<$AL$9,$AJ$7,"") -> علم الاجتماع
E157: مجموع الفصلين
E158: الفصل الاول | AM158: =IF(AND(H160>=$H$9,K160>=$K$9,N160>=$N$9,Q160>=$Q$9,T160>=$T$9,W160>=$W$9,Z160>=$Z$9,AC160>=$AC$9,AF160>=$AF$9,AI160>=$AI$9,AL160>=$AL$9),SUM(H160,K160,N160,Q160,T160,W160,Z160,AC160,AF160,AI160,AL160),0) -> 0 | AN158: =AM158/1320*100 -> 0 | AO158: =evaltion(AN158) -> راسب | AP158: =IF(AM158=0,"له دور ثان في",IF(AM158>0,"ناجـــــــــــــــــــح")) -> له دور ثان في
E159: الفصل الثاني | AP159: =IF(H160<$H$9,$F$7,"") -> التربية الاسلامية | AQ159: =IF(K160<$K$9,$L$7,"") -> اللغة الانجليزية | AR159: =IF(N160<$N$9,#REF!,"") ->  | AS159: =IF(Q160<$Q$9,$O$7,"") -> تقنية المعلومات | AT159: =IF(T160<$T$9,$R$7,"") -> الرياضيات | AU159: =IF(W160<$W$9,$U$7,"") -> الفيزياء | AV159: =IF(Z160<$Z$9,$X$7,"") -> الكيمياء | AW159: =IF(AC160<$AC$9,$AA$7,"") -> الاحياء | AX159: =IF(AF160<$AF$9,$AD$7,"") -> التاريخ | AY159: =IF(AI160<$AI$9,$AG$7,"") -> الجغرافيا | AZ159: =IF(AL160<$AL$9,$AJ$7,"") -> علم الاجتماع
E160: مجموع الفصلين
E161: الفصل الاول | AM161: =IF(AND(H163>=$H$9,K163>=$K$9,N163>=$N$9,Q163>=$Q$9,T163>=$T$9,W163>=$W$9,Z163>=$Z$9,AC163>=$AC$9,AF163>=$AF$9,AI163>=$AI$9,AL163>=$AL$9),SUM(H163,K163,N163,Q163,T163,W163,Z163,AC163,AF163,AI163,AL163),0) -> 0 | AN161: =AM161/1320*100 -> 0 | AO161: =evaltion(AN161) -> راسب | AP161: =IF(AM161=0,"له دور ثان في",IF(AM161>0,"ناجـــــــــــــــــــح")) -> له دور ثان في
E162: الفصل الثاني | AP162: =IF(H163<$H$9,$F$7,"") -> التربية الاسلامية | AQ162: =IF(K163<$K$9,$L$7,"") -> اللغة الانجليزية | AR162: =IF(N163<$N$9,#REF!,"") ->  | AS162: =IF(Q163<$Q$9,$O$7,"") -> تقنية المعلومات | AT162: =IF(T163<$T$9,$R$7,"") -> الرياضيات | AU162: =IF(W163<$W$9,$U$7,"") -> الفيزياء | AV162: =IF(Z163<$Z$9,$X$7,"") -> الكيمياء | AW162: =IF(AC163<$AC$9,$AA$7,"") -> الاحياء | AX162: =IF(AF163<$AF$9,$AD$7,"") -> التاريخ | AY162: =IF(AI163<$AI$9,$AG$7,"") -> الجغرافيا | AZ162: =IF(AL163<$AL$9,$AJ$7,"") -> علم الاجتماع
E163: مجموع الفصلين
E164: الفصل الاول | AM164: =IF(AND(H166>=$H$9,K166>=$K$9,N166>=$N$9,Q166>=$Q$9,T166>=$T$9,W166>=$W$9,Z166>=$Z$9,AC166>=$AC$9,AF166>=$AF$9,AI166>=$AI$9,AL166>=$AL$9),SUM(H166,K166,N166,Q166,T166,W166,Z166,AC166,AF166,AI166,AL166),0) -> 0 | AN164: =AM164/1320*100 -> 0 | AO164: =evaltion(AN164) -> راسب | AP164: =IF(AM164=0,"له دور ثان في",IF(AM164>0,"ناجـــــــــــــــــــح")) -> له دور ثان في
E165: الفصل الثاني | AP165: =IF(H166<$H$9,$F$7,"") -> التربية الاسلامية | AQ165: =IF(K166<$K$9,$L$7,"") -> اللغة الانجليزية | AR165: =IF(N166<$N$9,#REF!,"") ->  | AS165: =IF(Q166<$Q$9,$O$7,"") -> تقنية المعلومات | AT165: =IF(T166<$T$9,$R$7,"") -> الرياضيات | AU165: =IF(W166<$W$9,$U$7,"") -> الفيزياء | AV165: =IF(Z166<$Z$9,$X$7,"") -> الكيمياء | AW165: =IF(AC166<$AC$9,$AA$7,"") -> الاحياء | AX165: =IF(AF166<$AF$9,$AD$7,"") -> التاريخ | AY165: =IF(AI166<$AI$9,$AG$7,"") -> الجغرافيا | AZ165: =IF(AL166<$AL$9,$AJ$7,"") -> علم الاجتماع
E166: مجموع الفصلين
E167: الفصل الاول | AM167: =IF(AND(H169>=$H$9,K169>=$K$9,N169>=$N$9,Q169>=$Q$9,T169>=$T$9,W169>=$W$9,Z169>=$Z$9,AC169>=$AC$9,AF169>=$AF$9,AI169>=$AI$9,AL169>=$AL$9),SUM(H169,K169,N169,Q169,T169,W169,Z169,AC169,AF169,AI169,AL169),0) -> 0 | AN167: =AM167/1320*100 -> 0 | AO167: =evaltion(AN167) -> راسب | AP167: =IF(AM167=0,"له دور ثان في",IF(AM167>0,"ناجـــــــــــــــــــح")) -> له دور ثان في
E168: الفصل الثاني | AP168: =IF(H169<$H$9,$F$7,"") -> التربية الاسلامية | AQ168: =IF(K169<$K$9,$L$7,"") -> اللغة الانجليزية | AR168: =IF(N169<$N$9,#REF!,"") ->  | AS168: =IF(Q169<$Q$9,$O$7,"") -> تقنية المعلومات | AT168: =IF(T169<$T$9,$R$7,"") -> الرياضيات | AU168: =IF(W169<$W$9,$U$7,"") -> الفيزياء | AV168: =IF(Z169<$Z$9,$X$7,"") -> الكيمياء | AW168: =IF(AC169<$AC$9,$AA$7,"") -> الاحياء | AX168: =IF(AF169<$AF$9,$AD$7,"") -> التاريخ | AY168: =IF(AI169<$AI$9,$AG$7,"") -> الجغرافيا | AZ168: =IF(AL169<$AL$9,$AJ$7,"") -> علم الاجتماع
E169: مجموع الفصلين
E170: الفصل الاول | AM170: =IF(AND(H172>=$H$9,K172>=$K$9,N172>=$N$9,Q172>=$Q$9,T172>=$T$9,W172>=$W$9,Z172>=$Z$9,AC172>=$AC$9,AF172>=$AF$9,AI172>=$AI$9,AL172>=$AL$9),SUM(H172,K172,N172,Q172,T172,W172,Z172,AC172,AF172,AI172,AL172),0) -> 0 | AN170: =AM170/1320*100 -> 0 | AO170: =evaltion(AN170) -> راسب | AP170: =IF(AM170=0,"له دور ثان في",IF(AM170>0,"ناجـــــــــــــــــــح")) -> له دور ثان في
E171: الفصل الثاني | AP171: =IF(H172<$H$9,$F$7,"") -> التربية الاسلامية | AQ171: =IF(K172<$K$9,$L$7,"") -> اللغة الانجليزية | AR171: =IF(N172<$N$9,#REF!,"") ->  | AS171: =IF(Q172<$Q$9,$O$7,"") -> تقنية المعلومات | AT171: =IF(T172<$T$9,$R$7,"") -> الرياضيات | AU171: =IF(W172<$W$9,$U$7,"") -> الفيزياء | AV171: =IF(Z172<$Z$9,$X$7,"") -> الكيمياء | AW171: =IF(AC172<$AC$9,$AA$7,"") -> الاحياء | AX171: =IF(AF172<$AF$9,$AD$7,"") -> التاريخ | AY171: =IF(AI172<$AI$9,$AG$7,"") -> الجغرافيا | AZ171: =IF(AL172<$AL$9,$AJ$7,"") -> علم الاجتماع
E172: مجموع الفصلين
E173: الفصل الاول | AM173: =IF(AND(H175>=$H$9,K175>=$K$9,N175>=$N$9,Q175>=$Q$9,T175>=$T$9,W175>=$W$9,Z175>=$Z$9,AC175>=$AC$9,AF175>=$AF$9,AI175>=$AI$9,AL175>=$AL$9),SUM(H175,K175,N175,Q175,T175,W175,Z175,AC175,AF175,AI175,AL175),0) -> 0 | AN173: =AM173/1320*100 -> 0 | AO173: =evaltion(AN173) -> راسب | AP173: =IF(AM173=0,"له دور ثان في",IF(AM173>0,"ناجـــــــــــــــــــح")) -> له دور ثان في
E174: الفصل الثاني | AP174: =IF(H175<$H$9,$F$7,"") -> التربية الاسلامية | AQ174: =IF(K175<$K$9,$L$7,"") -> اللغة الانجليزية | AR174: =IF(N175<$N$9,#REF!,"") ->  | AS174: =IF(Q175<$Q$9,$O$7,"") -> تقنية المعلومات | AT174: =IF(T175<$T$9,$R$7,"") -> الرياضيات | AU174: =IF(W175<$W$9,$U$7,"") -> الفيزياء | AV174: =IF(Z175<$Z$9,$X$7,"") -> الكيمياء | AW174: =IF(AC175<$AC$9,$AA$7,"") -> الاحياء | AX174: =IF(AF175<$AF$9,$AD$7,"") -> التاريخ | AY174: =IF(AI175<$AI$9,$AG$7,"") -> الجغرافيا | AZ174: =IF(AL175<$AL$9,$AJ$7,"") -> علم الاجتماع
E175: مجموع الفصلين
E176: الفصل الاول | AM176: =IF(AND(H178>=$H$9,K178>=$K$9,N178>=$N$9,Q178>=$Q$9,T178>=$T$9,W178>=$W$9,Z178>=$Z$9,AC178>=$AC$9,AF178>=$AF$9,AI178>=$AI$9,AL178>=$AL$9),SUM(H178,K178,N178,Q178,T178,W178,Z178,AC178,AF178,AI178,AL178),0) -> 0 | AN176: =AM176/1320*100 -> 0 | AO176: =evaltion(AN176) -> راسب | AP176: =IF(AM176=0,"له دور ثان في",IF(AM176>0,"ناجـــــــــــــــــــح")) -> له دور ثان في
E177: الفصل الثاني | AP177: =IF(H178<$H$9,$F$7,"") -> التربية الاسلامية | AQ177: =IF(K178<$K$9,$L$7,"") -> اللغة الانجليزية | AR177: =IF(N178<$N$9,#REF!,"") ->  | AS177: =IF(Q178<$Q$9,$O$7,"") -> تقنية المعلومات | AT177: =IF(T178<$T$9,$R$7,"") -> الرياضيات | AU177: =IF(W178<$W$9,$U$7,"") -> الفيزياء | AV177: =IF(Z178<$Z$9,$X$7,"") -> الكيمياء | AW177: =IF(AC178<$AC$9,$AA$7,"") -> الاحياء | AX177: =IF(AF178<$AF$9,$AD$7,"") -> التاريخ | AY177: =IF(AI178<$AI$9,$AG$7,"") -> الجغرافيا | AZ177: =IF(AL178<$AL$9,$AJ$7,"") -> علم الاجتماع
E178: مجموع الفصلين
E179: الفصل الاول | AM179: =IF(AND(H181>=$H$9,K181>=$K$9,N181>=$N$9,Q181>=$Q$9,T181>=$T$9,W181>=$W$9,Z181>=$Z$9,AC181>=$AC$9,AF181>=$AF$9,AI181>=$AI$9,AL181>=$AL$9),SUM(H181,K181,N181,Q181,T181,W181,Z181,AC181,AF181,AI181,AL181),0) -> 0 | AN179: =AM179/1320*100 -> 0 | AO179: =evaltion(AN179) -> راسب | AP179: =IF(AM179=0,"له دور ثان في",IF(AM179>0,"ناجـــــــــــــــــــح")) -> له دور ثان في
E180: الفصل الثاني | AP180: =IF(H181<$H$9,$F$7,"") -> التربية الاسلامية | AQ180: =IF(K181<$K$9,$L$7,"") -> اللغة الانجليزية | AR180: =IF(N181<$N$9,#REF!,"") ->  | AS180: =IF(Q181<$Q$9,$O$7,"") -> تقنية المعلومات | AT180: =IF(T181<$T$9,$R$7,"") -> الرياضيات | AU180: =IF(W181<$W$9,$U$7,"") -> الفيزياء | AV180: =IF(Z181<$Z$9,$X$7,"") -> الكيمياء | AW180: =IF(AC181<$AC$9,$AA$7,"") -> الاحياء | AX180: =IF(AF181<$AF$9,$AD$7,"") -> التاريخ | AY180: =IF(AI181<$AI$9,$AG$7,"") -> الجغرافيا | AZ180: =IF(AL181<$AL$9,$AJ$7,"") -> علم الاجتماع
E181: مجموع الفصلين
E182: الفصل الاول | AM182: =IF(AND(H184>=$H$9,K184>=$K$9,N184>=$N$9,Q184>=$Q$9,T184>=$T$9,W184>=$W$9,Z184>=$Z$9,AC184>=$AC$9,AF184>=$AF$9,AI184>=$AI$9,AL184>=$AL$9),SUM(H184,K184,N184,Q184,T184,W184,Z184,AC184,AF184,AI184,AL184),0) -> 0 | AN182: =AM182/1320*100 -> 0 | AO182: =evaltion(AN182) -> راسب | AP182: =IF(AM182=0,"له دور ثان في",IF(AM182>0,"ناجـــــــــــــــــــح")) -> له دور ثان في
E183: الفصل الثاني | AP183: =IF(H184<$H$9,$F$7,"") -> التربية الاسلامية | AQ183: =IF(K184<$K$9,$L$7,"") -> اللغة الانجليزية | AR183: =IF(N184<$N$9,#REF!,"") ->  | AS183: =IF(Q184<$Q$9,$O$7,"") -> تقنية المعلومات | AT183: =IF(T184<$T$9,$R$7,"") -> الرياضيات | AU183: =IF(W184<$W$9,$U$7,"") -> الفيزياء | AV183: =IF(Z184<$Z$9,$X$7,"") -> الكيمياء | AW183: =IF(AC184<$AC$9,$AA$7,"") -> الاحياء | AX183: =IF(AF184<$AF$9,$AD$7,"") -> التاريخ | AY183: =IF(AI184<$AI$9,$AG$7,"") -> الجغرافيا | AZ183: =IF(AL184<$AL$9,$AJ$7,"") -> علم الاجتماع
E184: مجموع الفصلين
E185: الفصل الاول | AM185: =IF(AND(H187>=$H$9,K187>=$K$9,N187>=$N$9,Q187>=$Q$9,T187>=$T$9,W187>=$W$9,Z187>=$Z$9,AC187>=$AC$9,AF187>=$AF$9,AI187>=$AI$9,AL187>=$AL$9),SUM(H187,K187,N187,Q187,T187,W187,Z187,AC187,AF187,AI187,AL187),0) -> 0 | AN185: =AM185/1320*100 -> 0 | AO185: =evaltion(AN185) -> راسب | AP185: =IF(AM185=0,"له دور ثان في",IF(AM185>0,"ناجـــــــــــــــــــح")) -> له دور ثان في
E186: الفصل الثاني | AP186: =IF(H187<$H$9,$F$7,"") -> التربية الاسلامية | AQ186: =IF(K187<$K$9,$L$7,"") -> اللغة الانجليزية | AR186: =IF(N187<$N$9,#REF!,"") ->  | AS186: =IF(Q187<$Q$9,$O$7,"") -> تقنية المعلومات | AT186: =IF(T187<$T$9,$R$7,"") -> الرياضيات | AU186: =IF(W187<$W$9,$U$7,"") -> الفيزياء | AV186: =IF(Z187<$Z$9,$X$7,"") -> الكيمياء | AW186: =IF(AC187<$AC$9,$AA$7,"") -> الاحياء | AX186: =IF(AF187<$AF$9,$AD$7,"") -> التاريخ | AY186: =IF(AI187<$AI$9,$AG$7,"") -> الجغرافيا | AZ186: =IF(AL187<$AL$9,$AJ$7,"") -> علم الاجتماع
E187: مجموع الفصلين
E188: الفصل الاول | AM188: =IF(AND(H190>=$H$9,K190>=$K$9,N190>=$N$9,Q190>=$Q$9,T190>=$T$9,W190>=$W$9,Z190>=$Z$9,AC190>=$AC$9,AF190>=$AF$9,AI190>=$AI$9,AL190>=$AL$9),SUM(H190,K190,N190,Q190,T190,W190,Z190,AC190,AF190,AI190,AL190),0) -> 0 | AN188: =AM188/1320*100 -> 0 | AO188: =evaltion(AN188) -> راسب | AP188: =IF(AM188=0,"له دور ثان في",IF(AM188>0,"ناجـــــــــــــــــــح")) -> له دور ثان في
E189: الفصل الثاني | AP189: =IF(H190<$H$9,$F$7,"") -> التربية الاسلامية | AQ189: =IF(K190<$K$9,$L$7,"") -> اللغة الانجليزية | AR189: =IF(N190<$N$9,#REF!,"") ->  | AS189: =IF(Q190<$Q$9,$O$7,"") -> تقنية المعلومات | AT189: =IF(T190<$T$9,$R$7,"") -> الرياضيات | AU189: =IF(W190<$W$9,$U$7,"") -> الفيزياء | AV189: =IF(Z190<$Z$9,$X$7,"") -> الكيمياء | AW189: =IF(AC190<$AC$9,$AA$7,"") -> الاحياء | AX189: =IF(AF190<$AF$9,$AD$7,"") -> التاريخ | AY189: =IF(AI190<$AI$9,$AG$7,"") -> الجغرافيا | AZ189: =IF(AL190<$AL$9,$AJ$7,"") -> علم الاجتماع
E190: مجموع الفصلين
E191: الفصل الاول | AM191: =IF(AND(H193>=$H$9,K193>=$K$9,N193>=$N$9,Q193>=$Q$9,T193>=$T$9,W193>=$W$9,Z193>=$Z$9,AC193>=$AC$9,AF193>=$AF$9,AI193>=$AI$9,AL193>=$AL$9),SUM(H193,K193,N193,Q193,T193,W193,Z193,AC193,AF193,AI193,AL193),0) -> 0 | AN191: =AM191/1320*100 -> 0 | AO191: =evaltion(AN191) -> راسب | AP191: =IF(AM191=0,"له دور ثان في",IF(AM191>0,"ناجـــــــــــــــــــح")) -> له دور ثان في
E192: الفصل الثاني | AP192: =IF(H193<$H$9,$F$7,"") -> التربية الاسلامية | AQ192: =IF(K193<$K$9,$L$7,"") -> اللغة الانجليزية | AR192: =IF(N193<$N$9,#REF!,"") ->  | AS192: =IF(Q193<$Q$9,$O$7,"") -> تقنية المعلومات | AT192: =IF(T193<$T$9,$R$7,"") -> الرياضيات | AU192: =IF(W193<$W$9,$U$7,"") -> الفيزياء | AV192: =IF(Z193<$Z$9,$X$7,"") -> الكيمياء | AW192: =IF(AC193<$AC$9,$AA$7,"") -> الاحياء | AX192: =IF(AF193<$AF$9,$AD$7,"") -> التاريخ | AY192: =IF(AI193<$AI$9,$AG$7,"") -> الجغرافيا | AZ192: =IF(AL193<$AL$9,$AJ$7,"") -> علم الاجتماع
E193: مجموع الفصلين
E194: الفصل الاول | AM194: =IF(AND(H196>=$H$9,K196>=$K$9,N196>=$N$9,Q196>=$Q$9,T196>=$T$9,W196>=$W$9,Z196>=$Z$9,AC196>=$AC$9,AF196>=$AF$9,AI196>=$AI$9,AL196>=$AL$9),SUM(H196,K196,N196,Q196,T196,W196,Z196,AC196,AF196,AI196,AL196),0) -> 0 | AN194: =AM194/1320*100 -> 0 | AO194: =evaltion(AN194) -> راسب | AP194: =IF(AM194=0,"له دور ثان في",IF(AM194>0,"ناجـــــــــــــــــــح")) -> له دور ثان في
E195: الفصل الثاني | AP195: =IF(H196<$H$9,$F$7,"") -> التربية الاسلامية | AQ195: =IF(K196<$K$9,$L$7,"") -> اللغة الانجليزية | AR195: =IF(N196<$N$9,#REF!,"") ->  | AS195: =IF(Q196<$Q$9,$O$7,"") -> تقنية المعلومات | AT195: =IF(T196<$T$9,$R$7,"") -> الرياضيات | AU195: =IF(W196<$W$9,$U$7,"") -> الفيزياء | AV195: =IF(Z196<$Z$9,$X$7,"") -> الكيمياء | AW195: =IF(AC196<$AC$9,$AA$7,"") -> الاحياء | AX195: =IF(AF196<$AF$9,$AD$7,"") -> التاريخ | AY195: =IF(AI196<$AI$9,$AG$7,"") -> الجغرافيا | AZ195: =IF(AL196<$AL$9,$AJ$7,"") -> علم الاجتماع
E196: مجموع الفصلين
E197: الفصل الاول | AM197: =IF(AND(H199>=$H$9,K199>=$K$9,N199>=$N$9,Q199>=$Q$9,T199>=$T$9,W199>=$W$9,Z199>=$Z$9,AC199>=$AC$9,AF199>=$AF$9,AI199>=$AI$9,AL199>=$AL$9),SUM(H199,K199,N199,Q199,T199,W199,Z199,AC199,AF199,AI199,AL199),0) -> 0 | AN197: =AM197/1320*100 -> 0 | AO197: =evaltion(AN197) -> راسب | AP197: =IF(AM197=0,"له دور ثان في",IF(AM197>0,"ناجـــــــــــــــــــح")) -> له دور ثان في
E198: الفصل الثاني | AP198: =IF(H199<$H$9,$F$7,"") -> التربية الاسلامية | AQ198: =IF(K199<$K$9,$L$7,"") -> اللغة الانجليزية | AR198: =IF(N199<$N$9,#REF!,"") ->  | AS198: =IF(Q199<$Q$9,$O$7,"") -> تقنية المعلومات | AT198: =IF(T199<$T$9,$R$7,"") -> الرياضيات | AU198: =IF(W199<$W$9,$U$7,"") -> الفيزياء | AV198: =IF(Z199<$Z$9,$X$7,"") -> الكيمياء | AW198: =IF(AC199<$AC$9,$AA$7,"") -> الاحياء | AX198: =IF(AF199<$AF$9,$AD$7,"") -> التاريخ | AY198: =IF(AI199<$AI$9,$AG$7,"") -> الجغرافيا | AZ198: =IF(AL199<$AL$9,$AJ$7,"") -> علم الاجتماع
E199: مجموع الفصلين
E200: الفصل الاول | AM200: =IF(AND(H202>=$H$9,K202>=$K$9,N202>=$N$9,Q202>=$Q$9,T202>=$T$9,W202>=$W$9,Z202>=$Z$9,AC202>=$AC$9,AF202>=$AF$9,AI202>=$AI$9,AL202>=$AL$9),SUM(H202,K202,N202,Q202,T202,W202,Z202,AC202,AF202,AI202,AL202),0) -> 0 | AN200: =AM200/1320*100 -> 0 | AO200: =evaltion(AN200) -> راسب | AP200: =IF(AM200=0,"له دور ثان في",IF(AM200>0,"ناجـــــــــــــــــــح")) -> له دور ثان في
... 1310 more rows
